Workbook

Sheet Tax Calculator For All Employee
D1: Prepared By :- | H1: Ummed Tarad (Teacher-GSSS Raimalwada, Mob.No.-9166973141) (Updated On 09-12-2022)
D2: Office: Principal, Govt. Sr. Sec. School Raimalwada, Bapini-Jodhpur (DDO Code-12572)
D3: Tax Calculation For All Employee For F.Y. 2022-23 (A.Y. 2023-24)
D4: Sr. No. | E4: Name Of Employee | F4: Total Income | G4: Standard Deduction | H4: HRA Examption | I4: Examption Uder Home Loan | J4: Examption U/S VI [80 C/80 CCC/ 80CCD(1)] Up To 1.5 Lac | K4: Exapmtion U/S 80 CCD(1B) Up To 50000 | L4: Exapmtion U/S 80 D/80 DD/80/ 80DDB | M4: Exapmtion U/S 80 G | N4: NET TAXABLE INCOME (For Old Tax Regime) | O4: TAX (OLD TAX REGIME) | U4: TAX (NEW TAX REGIME) | AD4: CHOICE (Old Rate/New Rate) | AE4: नव.-2022 के वेतन तक की गई Itax कटौती | AH4: अग्रिम शेष माह में की जाने वाली Itax कटौती | AK4: Total Deductable Itax | AM4: Payble (P), Refundable (R) Itax
O5: 2.5 Lac to 5 Lac | P5: 5 Lac to 10 Lac | Q5: >10 Lac | R5: Total | S5: Edu. Cess (4%) | T5: Grand Total | U5: 2.5 Lac to 5 Lac | V5: 5 Lac to 7.5 Lac | W5: 7.5 Lac to 10 Lac | X5: 10 Lac to 12.5 Lac | Y5: 12.5 Lac to 15 Lac | Z5: >15 Lac | AA5: Total | AB5: Edu. Cess (4%) | AC5: Grand Total | AE5: From Salary | AF5: Via Challan | AG5: Total | AH5: =IF(AE4="नव.-2022 के वेतन तक की गई Itax कटौती","Dec-22",0) -> Dec-22 | AI5: =IF(AE4="नव.-2022 के वेतन तक की गई Itax कटौती","Jan-23",0) -> Jan-23 | AJ5: 2023-02-01
D6: 1 | E6: 2 | F6: 3 | G6: 4 | H6: 5 | I6: 6 | J6: 7 | K6: 8 | L6: 9 | M6: 10 | N6: 11 | O6: 8 | P6: 9 | Q6: 10 | R6: 12 | S6: 13 | T6: 14 | U6: 14 | V6: 15 | W6: 16 | X6: 17 | Y6: 18 | Z6: 19 | AA6: 15 | AB6: 16 | AC6: 17 | AD6: 18 | AE6: 19 | AH6: 20 | AI6: 21 | AJ6: 22 | AK6: 23 | AM6: 24 | AP6: old | AV6: new
A7: =MIN(T7,AC7) -> 22984 | B7: =IF(A7=0,0,IF(A7<=12500,"R",0)) -> 0 | D7: 1 | F7: 780000 | G7: 50000 | H7: 32000 | I7: 0 | J7: 150000 | K7: 0 | L7: 0 | M7: 0 | N7: =F7-G7-H7-I7-J7-K7-L7-M7 -> 548000 | O7: =IF(N7<250000,0,IF(N7>500000,12500,IF(N7<500000,ROUND((N7-250000)*0.05,0),0))) -> 12500 | P7: =IF(N7<500000,0,IF(N7>1000000,100000,ROUND((N7-500000)*0.2,0))) -> 9600 | Q7: =IF(N7<1000000,0,ROUND((N7-1000000)*0.3,0)) -> 0 | R7: =IF(F7>0,(O7+P7+Q7),0) -> 22100 | S7: =ROUND(R7*0.04,0) -> 884 | T7: =R7+S7 -> 22984 | U7: =IF(F7>500000,12500,0) -> 12500 | V7: =IF(F7<500000,0,IF(F7>750000,25000,ROUND((F7-500000)*0.1,0))) -> 25000 | W7: =IF(F7<750000,0,IF(F7>1000000,37500,ROUND((F7-750000)*0.15,0))) -> 4500 | X7: =IF(F7<1000000,0,IF(F7>1250000,50000,ROUND((F7-1000000)*0.2,0))) -> 0 | Y7: =IF(F7<1250000,0,IF(F7>1500000,62500,ROUND((F7-1250000)*0.25,0))) -> 0 | Z7: =IF(F7<1500000,0,ROUND((F7-1500000)*0.3,0)) -> 0 | AA7: =U7+V7+W7+X7+Y7+Z7 -> 42000 | AB7: =ROUND(AA7*0.04,0) -> 1680 | AC7: =AA7+AB7 -> 43680 | AD7: =IF(T7=0,0,IF(T7>AC7,"New Regime","Old Regime")) -> Old Regime | AE7: 8000 | AG7: =AE7+AF7 -> 8000 | AH7: =MIN(AP7,AV7) -> 5000 | AI7: =MIN(AQ7,AW7) -> 5000 | AJ7: =MIN(AR7,AX7) -> 5000 | AK7: =AH7+AI7+AJ7 -> 15000 | AL7: =MIN(T7,AC7) -> 22984 | AM7: =IF(AL7<=12500,-AG7,AL7-(AG7+AK7)) -> -16 | AN7: =IF(AM7=0,0,IF(AM7>0,"(P)","(R)")) -> (R) | AP7: =IF($AE$4="जन.-2023 के वेतन तक की गई Itax कटौती",0,IF(T7<=12500,0,IF(AG7>T7,0,ROUNDUP((T7-AG7)/3,-3)))) -> 5000 | AQ7: =IF($AE$4="जन.-2023 के वेतन तक की गई Itax कटौती",0,IF(T7<=12500,0,IF(AG7>T7,0,ROUNDUP((T7-AG7)/3,-3)))) -> 5000 | AR7: =IF($AE$4="जन.-2023 के वेतन तक की गई Itax कटौती",ROUNDUP((T7-AG7),-3),IF(T7<=12500,0,IF(AG7>T7,0,ROUNDUP((T7-AG7)/3,-3)))) -> 5000 | AS7: =AP7+AQ7+AR7 -> 15000 | AT7: =AS7+AE7 -> 23000 | AU7: =AT7-T7 -> 16 | AV7: =IF($AE$4="जन.-2023 के वेतन तक की गई Itax कटौती",0,IF(AC7<=12500,0,IF(AG7>AC7,0,ROUNDUP((AC7-AG7)/3,-3)))) -> 12000 | AW7: =IF($AE$4="जन.-2023 के वेतन तक की गई Itax कटौती",0,IF(AC7<=12500,0,IF(AG7>AC7,0,ROUNDUP((AC7-AG7)/3,-3)))) -> 12000 | AX7: =IF($AE$4="जन.-2023 के वेतन तक की गई Itax कटौती",ROUNDUP((AC7-AG7),-3),IF(AC7<=12500,0,IF(AG7>AC7,0,ROUNDUP((AC7-AG7)/3,-3)))) -> 12000 | AY7: =AV7+AW7+AX7 -> 36000 | AZ7: =AY7+AE7 -> 44000 | BA7: =AZ7-AC7 -> 320
A8: =MIN(T8,AC8) -> 0 | B8: =IF(A8=0,0,IF(A8<=12500,"R",0)) -> 0 | D8: 2 | N8: =F8-G8-H8-I8-J8-K8-L8-M8 -> 0 | O8: =IF(N8<250000,0,IF(N8>500000,12500,IF(N8<500000,ROUND((N8-250000)*0.05,0),0))) -> 0 | P8: =IF(N8<500000,0,IF(N8>1000000,100000,ROUND((N8-500000)*0.2,0))) -> 0 | Q8: =IF(N8<1000000,0,ROUND((N8-1000000)*0.3,0)) -> 0 | R8: =IF(F8>0,(O8+P8+Q8),0) -> 0 | S8: =ROUND(R8*0.04,0) -> 0 | T8: =R8+S8 -> 0 | U8: =IF(F8>500000,12500,0) -> 0 | V8: =IF(F8<500000,0,IF(F8>750000,25000,ROUND((F8-500000)*0.1,0))) -> 0 | W8: =IF(F8<750000,0,IF(F8>1000000,37500,ROUND((F8-750000)*0.15,0))) -> 0 | X8: =IF(F8<1000000,0,IF(F8>1250000,50000,ROUND((F8-1000000)*0.2,0))) -> 0 | Y8: =IF(F8<1250000,0,IF(F8>1500000,62500,ROUND((F8-1250000)*0.25,0))) -> 0 | Z8: =IF(F8<1500000,0,ROUND((F8-1500000)*0.3,0)) -> 0 | AA8: =U8+V8+W8+X8+Y8+Z8 -> 0 | AB8: =ROUND(AA8*0.04,0) -> 0 | AC8: =AA8+AB8 -> 0 | AD8: =IF(T8=0,0,IF(T8>AC8,"New Regime","Old Regime")) -> 0 | AG8: =AE8+AF8 -> 0 | AH8: =MIN(AP8,AV8) -> 0 | AI8: =MIN(AQ8,AW8) -> 0 | AJ8: =MIN(AR8,AX8) -> 0 | AK8: =AH8+AI8+AJ8 -> 0 | AL8: =MIN(T8,AC8) -> 0 | AM8: =IF(AL8<=12500,-AG8,AL8-(AG8+AK8)) -> 0 | AN8: =IF(AM8=0,0,IF(AM8>0,"(P)","(R)")) -> 0 | AP8: =IF($AE$4="जन.-2023 के वेतन तक की गई Itax कटौती",0,IF(T8<=12500,0,IF(AG8>T8,0,ROUNDUP((T8-AG8)/3,-3)))) -> 0 | AQ8: =IF($AE$4="जन.-2023 के वेतन तक की गई Itax कटौती",0,IF(T8<=12500,0,IF(AG8>T8,0,ROUNDUP((T8-AG8)/3,-3)))) -> 0 | AR8: =IF($AE$4="जन.-2023 के वेतन तक की गई Itax कटौती",ROUNDUP((T8-AG8),-3),IF(T8<=12500,0,IF(AG8>T8,0,ROUNDUP((T8-AG8)/3,-3)))) -> 0 | AS8: =AP8+AQ8+AR8 -> 0 | AT8: =AS8+AE8 -> 0 | AU8: =AT8-T8 -> 0 | AV8: =IF($AE$4="जन.-2023 के वेतन तक की गई Itax कटौती",0,IF(AC8<=12500,0,IF(AG8>AC8,0,ROUNDUP((AC8-AG8)/3,-3)))) -> 0 | AW8: =IF($AE$4="जन.-2023 के वेतन तक की गई Itax कटौती",0,IF(AC8<=12500,0,IF(AG8>AC8,0,ROUNDUP((AC8-AG8)/3,-3)))) -> 0 | AX8: =IF($AE$4="जन.-2023 के वेतन तक की गई Itax कटौती",ROUNDUP((AC8-AG8),-3),IF(AC8<=12500,0,IF(AG8>AC8,0,ROUNDUP((AC8-AG8)/3,-3)))) -> 0 | AY8: =AV8+AW8+AX8 -> 0 | AZ8: =AY8+AE8 -> 0 | BA8: =AZ8-AC8 -> 0
A9: 0 | B9: 0 | D9: 3 | N9: 0 | O9: 0 | P9: 0 | Q9: 0 | R9: 0 | S9: 0 | T9: 0 | U9: 0 | V9: 0 | W9: 0 | X9: 0 | Y9: 0 | Z9: 0 | AA9: 0 | AB9: 0 | AC9: 0 | AD9: 0 | AG9: 0 | AH9: 0 | AI9: 0 | AJ9: 0 | AK9: 0 | AL9: 0 | AM9: 0 | AN9: 0 | AP9: 0 | AQ9: 0 | AR9: 0 | AS9: 0 | AT9: 0 | AU9: 0 | AV9: 0 | AW9: 0 | AX9: 0 | AY9: 0 | AZ9: 0 | BA9: 0
A10: 0 | B10: 0 | D10: 4 | N10: 0 | O10: 0 | P10: 0 | Q10: 0 | R10: 0 | S10: 0 | T10: 0 | U10: 0 | V10: 0 | W10: 0 | X10: 0 | Y10: 0 | Z10: 0 | AA10: 0 | AB10: 0 | AC10: 0 | AD10: 0 | AG10: 0 | AH10: 0 | AI10: 0 | AJ10: 0 | AK10: 0 | AL10: 0 | AM10: 0 | AN10: 0 | AP10: 0 | AQ10: 0 | AR10: 0 | AS10: 0 | AT10: 0 | AU10: 0 | AV10: 0 | AW10: 0 | AX10: 0 | AY10: 0 | AZ10: 0 | BA10: 0
A11: 0 | B11: 0 | D11: 5 | N11: 0 | O11: 0 | P11: 0 | Q11: 0 | R11: 0 | S11: 0 | T11: 0 | U11: 0 | V11: 0 | W11: 0 | X11: 0 | Y11: 0 | Z11: 0 | AA11: 0 | AB11: 0 | AC11: 0 | AD11: 0 | AG11: 0 | AH11: 0 | AI11: 0 | AJ11: 0 | AK11: 0 | AL11: 0 | AM11: 0 | AN11: 0 | AP11: 0 | AQ11: 0 | AR11: 0 | AS11: 0 | AT11: 0 | AU11: 0 | AV11: 0 | AW11: 0 | AX11: 0 | AY11: 0 | AZ11: 0 | BA11: 0
A12: 0 | B12: 0 | D12: 6 | N12: 0 | O12: 0 | P12: 0 | Q12: 0 | R12: 0 | S12: 0 | T12: 0 | U12: 0 | V12: 0 | W12: 0 | X12: 0 | Y12: 0 | Z12: 0 | AA12: 0 | AB12: 0 | AC12: 0 | AD12: 0 | AG12: 0 | AH12: 0 | AI12: 0 | AJ12: 0 | AK12: 0 | AL12: 0 | AM12: 0 | AN12: 0 | AP12: 0 | AQ12: 0 | AR12: 0 | AS12: 0 | AT12: 0 | AU12: 0 | AV12: 0 | AW12: 0 | AX12: 0 | AY12: 0 | AZ12: 0 | BA12: 0
A13: 0 | B13: 0 | D13: 7 | N13: 0 | O13: 0 | P13: 0 | Q13: 0 | R13: 0 | S13: 0 | T13: 0 | U13: 0 | V13: 0 | W13: 0 | X13: 0 | Y13: 0 | Z13: 0 | AA13: 0 | AB13: 0 | AC13: 0 | AD13: 0 | AG13: 0 | AH13: 0 | AI13: 0 | AJ13: 0 | AK13: 0 | AL13: 0 | AM13: 0 | AN13: 0 | AP13: 0 | AQ13: 0 | AR13: 0 | AS13: 0 | AT13: 0 | AU13: 0 | AV13: 0 | AW13: 0 | AX13: 0 | AY13: 0 | AZ13: 0 | BA13: 0
A14: 0 | B14: 0 | D14: 8 | N14: 0 | O14: 0 | P14: 0 | Q14: 0 | R14: 0 | S14: 0 | T14: 0 | U14: 0 | V14: 0 | W14: 0 | X14: 0 | Y14: 0 | Z14: 0 | AA14: 0 | AB14: 0 | AC14: 0 | AD14: 0 | AG14: 0 | AH14: 0 | AI14: 0 | AJ14: 0 | AK14: 0 | AL14: 0 | AM14: 0 | AN14: 0 | AP14: 0 | AQ14: 0 | AR14: 0 | AS14: 0 | AT14: 0 | AU14: 0 | AV14: 0 | AW14: 0 | AX14: 0 | AY14: 0 | AZ14: 0 | BA14: 0
A15: 0 | B15: 0 | D15: 9 | N15: 0 | O15: 0 | P15: 0 | Q15: 0 | R15: 0 | S15: 0 | T15: 0 | U15: 0 | V15: 0 | W15: 0 | X15: 0 | Y15: 0 | Z15: 0 | AA15: 0 | AB15: 0 | AC15: 0 | AD15: 0 | AG15: 0 | AH15: 0 | AI15: 0 | AJ15: 0 | AK15: 0 | AL15: 0 | AM15: 0 | AN15: 0 | AP15: 0 | AQ15: 0 | AR15: 0 | AS15: 0 | AT15: 0 | AU15: 0 | AV15: 0 | AW15: 0 | AX15: 0 | AY15: 0 | AZ15: 0 | BA15: 0
A16: 0 | B16: 0 | D16: 10 | N16: 0 | O16: 0 | P16: 0 | Q16: 0 | R16: 0 | S16: 0 | T16: 0 | U16: 0 | V16: 0 | W16: 0 | X16: 0 | Y16: 0 | Z16: 0 | AA16: 0 | AB16: 0 | AC16: 0 | AD16: 0 | AG16: 0 | AH16: 0 | AI16: 0 | AJ16: 0 | AK16: 0 | AL16: 0 | AM16: 0 | AN16: 0 | AP16: 0 | AQ16: 0 | AR16: 0 | AS16: 0 | AT16: 0 | AU16: 0 | AV16: 0 | AW16: 0 | AX16: 0 | AY16: 0 | AZ16: 0 | BA16: 0
A17: 0 | B17: 0 | D17: 11 | N17: 0 | O17: 0 | P17: 0 | Q17: 0 | R17: 0 | S17: 0 | T17: 0 | U17: 0 | V17: 0 | W17: 0 | X17: 0 | Y17: 0 | Z17: 0 | AA17: 0 | AB17: 0 | AC17: 0 | AD17: 0 | AG17: 0 | AH17: 0 | AI17: 0 | AJ17: 0 | AK17: 0 | AL17: 0 | AM17: 0 | AN17: 0 | AP17: 0 | AQ17: 0 | AR17: 0 | AS17: 0 | AT17: 0 | AU17: 0 | AV17: 0 | AW17: 0 | AX17: 0 | AY17: 0 | AZ17: 0 | BA17: 0
A18: 0 | B18: 0 | D18: 12 | N18: 0 | O18: 0 | P18: 0 | Q18: 0 | R18: 0 | S18: 0 | T18: 0 | U18: 0 | V18: 0 | W18: 0 | X18: 0 | Y18: 0 | Z18: 0 | AA18: 0 | AB18: 0 | AC18: 0 | AD18: 0 | AG18: 0 | AH18: 0 | AI18: 0 | AJ18: 0 | AK18: 0 | AL18: 0 | AM18: 0 | AN18: 0 | AP18: 0 | AQ18: 0 | AR18: 0 | AS18: 0 | AT18: 0 | AU18: 0 | AV18: 0 | AW18: 0 | AX18: 0 | AY18: 0 | AZ18: 0 | BA18: 0
A19: 0 | B19: 0 | D19: 13 | N19: 0 | O19: 0 | P19: 0 | Q19: 0 | R19: 0 | S19: 0 | T19: 0 | U19: 0 | V19: 0 | W19: 0 | X19: 0 | Y19: 0 | Z19: 0 | AA19: 0 | AB19: 0 | AC19: 0 | AD19: 0 | AG19: 0 | AH19: 0 | AI19: 0 | AJ19: 0 | AK19: 0 | AL19: 0 | AM19: 0 | AN19: 0 | AP19: 0 | AQ19: 0 | AR19: 0 | AS19: 0 | AT19: 0 | AU19: 0 | AV19: 0 | AW19: 0 | AX19: 0 | AY19: 0 | AZ19: 0 | BA19: 0
A20: 0 | B20: 0 | D20: 14 | N20: 0 | O20: 0 | P20: 0 | Q20: 0 | R20: 0 | S20: 0 | T20: 0 | U20: 0 | V20: 0 | W20: 0 | X20: 0 | Y20: 0 | Z20: 0 | AA20: 0 | AB20: 0 | AC20: 0 | AD20: 0 | AG20: 0 | AH20: 0 | AI20: 0 | AJ20: 0 | AK20: 0 | AL20: 0 | AM20: 0 | AN20: 0 | AP20: 0 | AQ20: 0 | AR20: 0 | AS20: 0 | AT20: 0 | AU20: 0 | AV20: 0 | AW20: 0 | AX20: 0 | AY20: 0 | AZ20: 0 | BA20: 0
A21: 0 | B21: 0 | D21: 15 | N21: 0 | O21: 0 | P21: 0 | Q21: 0 | R21: 0 | S21: 0 | T21: 0 | U21: 0 | V21: 0 | W21: 0 | X21: 0 | Y21: 0 | Z21: 0 | AA21: 0 | AB21: 0 | AC21: 0 | AD21: 0 | AG21: 0 | AH21: 0 | AI21: 0 | AJ21: 0 | AK21: 0 | AL21: 0 | AM21: 0 | AN21: 0 | AP21: 0 | AQ21: 0 | AR21: 0 | AS21: 0 | AT21: 0 | AU21: 0 | AV21: 0 | AW21: 0 | AX21: 0 | AY21: 0 | AZ21: 0 | BA21: 0
A22: 0 | B22: 0 | D22: 16 | N22: 0 | O22: 0 | P22: 0 | Q22: 0 | R22: 0 | S22: 0 | T22: 0 | U22: 0 | V22: 0 | W22: 0 | X22: 0 | Y22: 0 | Z22: 0 | AA22: 0 | AB22: 0 | AC22: 0 | AD22: 0 | AG22: 0 | AH22: 0 | AI22: 0 | AJ22: 0 | AK22: 0 | AL22: 0 | AM22: 0 | AN22: 0 | AP22: 0 | AQ22: 0 | AR22: 0 | AS22: 0 | AT22: 0 | AU22: 0 | AV22: 0 | AW22: 0 | AX22: 0 | AY22: 0 | AZ22: 0 | BA22: 0
A23: 0 | B23: 0 | D23: 17 | N23: 0 | O23: 0 | P23: 0 | Q23: 0 | R23: 0 | S23: 0 | T23: 0 | U23: 0 | V23: 0 | W23: 0 | X23: 0 | Y23: 0 | Z23: 0 | AA23: 0 | AB23: 0 | AC23: 0 | AD23: 0 | AG23: 0 | AH23: 0 | AI23: 0 | AJ23: 0 | AK23: 0 | AL23: 0 | AM23: 0 | AN23: 0 | AP23: 0 | AQ23: 0 | AR23: 0 | AS23: 0 | AT23: 0 | AU23: 0 | AV23: 0 | AW23: 0 | AX23: 0 | AY23: 0 | AZ23: 0 | BA23: 0
A24: 0 | B24: 0 | D24: 18 | N24: 0 | O24: 0 | P24: 0 | Q24: 0 | R24: 0 | S24: 0 | T24: 0 | U24: 0 | V24: 0 | W24: 0 | X24: 0 | Y24: 0 | Z24: 0 | AA24: 0 | AB24: 0 | AC24: 0 | AD24: 0 | AG24: 0 | AH24: 0 | AI24: 0 | AJ24: 0 | AK24: 0 | AL24: 0 | AM24: 0 | AN24: 0 | AP24: 0 | AQ24: 0 | AR24: 0 | AS24: 0 | AT24: 0 | AU24: 0 | AV24: 0 | AW24: 0 | AX24: 0 | AY24: 0 | AZ24: 0 | BA24: 0
A25: 0 | B25: 0 | D25: 19 | N25: 0 | O25: 0 | P25: 0 | Q25: 0 | R25: 0 | S25: 0 | T25: 0 | U25: 0 | V25: 0 | W25: 0 | X25: 0 | Y25: 0 | Z25: 0 | AA25: 0 | AB25: 0 | AC25: 0 | AD25: 0 | AG25: 0 | AH25: 0 | AI25: 0 | AJ25: 0 | AK25: 0 | AL25: 0 | AM25: 0 | AN25: 0 | AP25: 0 | AQ25: 0 | AR25: 0 | AS25: 0 | AT25: 0 | AU25: 0 | AV25: 0 | AW25: 0 | AX25: 0 | AY25: 0 | AZ25: 0 | BA25: 0
A26: 0 | B26: 0 | D26: 20 | N26: 0 | O26: 0 | P26: 0 | Q26: 0 | R26: 0 | S26: 0 | T26: 0 | U26: 0 | V26: 0 | W26: 0 | X26: 0 | Y26: 0 | Z26: 0 | AA26: 0 | AB26: 0 | AC26: 0 | AD26: 0 | AG26: 0 | AH26: 0 | AI26: 0 | AJ26: 0 | AK26: 0 | AL26: 0 | AM26: 0 | AN26: 0 | AP26: 0 | AQ26: 0 | AR26: 0 | AS26: 0 | AT26: 0 | AU26: 0 | AV26: 0 | AW26: 0 | AX26: 0 | AY26: 0 | AZ26: 0 | BA26: 0
A27: 0 | B27: 0 | D27: 21 | N27: 0 | O27: 0 | P27: 0 | Q27: 0 | R27: 0 | S27: 0 | T27: 0 | U27: 0 | V27: 0 | W27: 0 | X27: 0 | Y27: 0 | Z27: 0 | AA27: 0 | AB27: 0 | AC27: 0 | AD27: 0 | AG27: 0 | AH27: 0 | AI27: 0 | AJ27: 0 | AK27: 0 | AL27: 0 | AM27: 0 | AN27: 0 | AP27: 0 | AQ27: 0 | AR27: 0 | AS27: 0 | AT27: 0 | AU27: 0 | AV27: 0 | AW27: 0 | AX27: 0 | AY27: 0 | AZ27: 0 | BA27: 0
A28: 0 | B28: 0 | D28: 22 | N28: 0 | O28: 0 | P28: 0 | Q28: 0 | R28: 0 | S28: 0 | T28: 0 | U28: 0 | V28: 0 | W28: 0 | X28: 0 | Y28: 0 | Z28: 0 | AA28: 0 | AB28: 0 | AC28: 0 | AD28: 0 | AG28: 0 | AH28: 0 | AI28: 0 | AJ28: 0 | AK28: 0 | AL28: 0 | AM28: 0 | AN28: 0 | AP28: 0 | AQ28: 0 | AR28: 0 | AS28: 0 | AT28: 0 | AU28: 0 | AV28: 0 | AW28: 0 | AX28: 0 | AY28: 0 | AZ28: 0 | BA28: 0
A29: 0 | B29: 0 | D29: 23 | N29: 0 | O29: 0 | P29: 0 | Q29: 0 | R29: 0 | S29: 0 | T29: 0 | U29: 0 | V29: 0 | W29: 0 | X29: 0 | Y29: 0 | Z29: 0 | AA29: 0 | AB29: 0 | AC29: 0 | AD29: 0 | AG29: 0 | AH29: 0 | AI29: 0 | AJ29: 0 | AK29: 0 | AL29: 0 | AM29: 0 | AN29: 0 | AP29: 0 | AQ29: 0 | AR29: 0 | AS29: 0 | AT29: 0 | AU29: 0 | AV29: 0 | AW29: 0 | AX29: 0 | AY29: 0 | AZ29: 0 | BA29: 0
A30: 0 | B30: 0 | D30: 24 | N30: 0 | O30: 0 | P30: 0 | Q30: 0 | R30: 0 | S30: 0 | T30: 0 | U30: 0 | V30: 0 | W30: 0 | X30: 0 | Y30: 0 | Z30: 0 | AA30: 0 | AB30: 0 | AC30: 0 | AD30: 0 | AG30: 0 | AH30: 0 | AI30: 0 | AJ30: 0 | AK30: 0 | AL30: 0 | AM30: 0 | AN30: 0 | AP30: 0 | AQ30: 0 | AR30: 0 | AS30: 0 | AT30: 0 | AU30: 0 | AV30: 0 | AW30: 0 | AX30: 0 | AY30: 0 | AZ30: 0 | BA30: 0
A31: 0 | B31: 0 | D31: 25 | N31: 0 | O31: 0 | P31: 0 | Q31: 0 | R31: 0 | S31: 0 | T31: 0 | U31: 0 | V31: 0 | W31: 0 | X31: 0 | Y31: 0 | Z31: 0 | AA31: 0 | AB31: 0 | AC31: 0 | AD31: 0 | AG31: 0 | AH31: 0 | AI31: 0 | AJ31: 0 | AK31: 0 | AL31: 0 | AM31: 0 | AN31: 0 | AP31: 0 | AQ31: 0 | AR31: 0 | AS31: 0 | AT31: 0 | AU31: 0 | AV31: 0 | AW31: 0 | AX31: 0 | AY31: 0 | AZ31: 0 | BA31: 0
A32: 0 | B32: 0 | D32: 26 | N32: 0 | O32: 0 | P32: 0 | Q32: 0 | R32: 0 | S32: 0 | T32: 0 | U32: 0 | V32: 0 | W32: 0 | X32: 0 | Y32: 0 | Z32: 0 | AA32: 0 | AB32: 0 | AC32: 0 | AD32: 0 | AG32: 0 | AH32: 0 | AI32: 0 | AJ32: 0 | AK32: 0 | AL32: 0 | AM32: 0 | AN32: 0 | AP32: 0 | AQ32: 0 | AR32: 0 | AS32: 0 | AT32: 0 | AU32: 0 | AV32: 0 | AW32: 0 | AX32: 0 | AY32: 0 | AZ32: 0 | BA32: 0
A33: 0 | B33: 0 | D33: 27 | N33: 0 | O33: 0 | P33: 0 | Q33: 0 | R33: 0 | S33: 0 | T33: 0 | U33: 0 | V33: 0 | W33: 0 | X33: 0 | Y33: 0 | Z33: 0 | AA33: 0 | AB33: 0 | AC33: 0 | AD33: 0 | AG33: 0 | AH33: 0 | AI33: 0 | AJ33: 0 | AK33: 0 | AL33: 0 | AM33: 0 | AN33: 0 | AP33: 0 | AQ33: 0 | AR33: 0 | AS33: 0 | AT33: 0 | AU33: 0 | AV33: 0 | AW33: 0 | AX33: 0 | AY33: 0 | AZ33: 0 | BA33: 0
A34: 0 | B34: 0 | D34: 28 | N34: 0 | O34: 0 | P34: 0 | Q34: 0 | R34: 0 | S34: 0 | T34: 0 | U34: 0 | V34: 0 | W34: 0 | X34: 0 | Y34: 0 | Z34: 0 | AA34: 0 | AB34: 0 | AC34: 0 | AD34: 0 | AG34: 0 | AH34: 0 | AI34: 0 | AJ34: 0 | AK34: 0 | AL34: 0 | AM34: 0 | AN34: 0 | AP34: 0 | AQ34: 0 | AR34: 0 | AS34: 0 | AT34: 0 | AU34: 0 | AV34: 0 | AW34: 0 | AX34: 0 | AY34: 0 | AZ34: 0 | BA34: 0
A35: 0 | B35: 0 | D35: 29 | N35: 0 | O35: 0 | P35: 0 | Q35: 0 | R35: 0 | S35: 0 | T35: 0 | U35: 0 | V35: 0 | W35: 0 | X35: 0 | Y35: 0 | Z35: 0 | AA35: 0 | AB35: 0 | AC35: 0 | AD35: 0 | AG35: 0 | AH35: 0 | AI35: 0 | AJ35: 0 | AK35: 0 | AL35: 0 | AM35: 0 | AN35: 0 | AP35: 0 | AQ35: 0 | AR35: 0 | AS35: 0 | AT35: 0 | AU35: 0 | AV35: 0 | AW35: 0 | AX35: 0 | AY35: 0 | AZ35: 0 | BA35: 0
A36: 0 | B36: 0 | D36: 30 | N36: 0 | O36: 0 | P36: 0 | Q36: 0 | R36: 0 | S36: 0 | T36: 0 | U36: 0 | V36: 0 | W36: 0 | X36: 0 | Y36: 0 | Z36: 0 | AA36: 0 | AB36: 0 | AC36: 0 | AD36: 0 | AG36: 0 | AH36: 0 | AI36: 0 | AJ36: 0 | AK36: 0 | AL36: 0 | AM36: 0 | AN36: 0 | AP36: 0 | AQ36: 0 | AR36: 0 | AS36: 0 | AT36: 0 | AU36: 0 | AV36: 0 | AW36: 0 | AX36: 0 | AY36: 0 | AZ36: 0 | BA36: 0
A37: 0 | B37: 0 | D37: 31 | N37: 0 | O37: 0 | P37: 0 | Q37: 0 | R37: 0 | S37: 0 | T37: 0 | U37: 0 | V37: 0 | W37: 0 | X37: 0 | Y37: 0 | Z37: 0 | AA37: 0 | AB37: 0 | AC37: 0 | AD37: 0 | AG37: 0 | AH37: 0 | AI37: 0 | AJ37: 0 | AK37: 0 | AL37: 0 | AM37: 0 | AN37: 0 | AP37: 0 | AQ37: 0 | AR37: 0 | AS37: 0 | AT37: 0 | AU37: 0 | AV37: 0 | AW37: 0 | AX37: 0 | AY37: 0 | AZ37: 0 | BA37: 0
A38: 0 | B38: 0 | D38: 32 | N38: 0 | O38: 0 | P38: 0 | Q38: 0 | R38: 0 | S38: 0 | T38: 0 | U38: 0 | V38: 0 | W38: 0 | X38: 0 | Y38: 0 | Z38: 0 | AA38: 0 | AB38: 0 | AC38: 0 | AD38: 0 | AG38: 0 | AH38: 0 | AI38: 0 | AJ38: 0 | AK38: 0 | AL38: 0 | AM38: 0 | AN38: 0 | AP38: 0 | AQ38: 0 | AR38: 0 | AS38: 0 | AT38: 0 | AU38: 0 | AV38: 0 | AW38: 0 | AX38: 0 | AY38: 0 | AZ38: 0 | BA38: 0
A39: 0 | B39: 0 | D39: 33 | N39: 0 | O39: 0 | P39: 0 | Q39: 0 | R39: 0 | S39: 0 | T39: 0 | U39: 0 | V39: 0 | W39: 0 | X39: 0 | Y39: 0 | Z39: 0 | AA39: 0 | AB39: 0 | AC39: 0 | AD39: 0 | AG39: 0 | AH39: 0 | AI39: 0 | AJ39: 0 | AK39: 0 | AL39: 0 | AM39: 0 | AN39: 0 | AP39: 0 | AQ39: 0 | AR39: 0 | AS39: 0 | AT39: 0 | AU39: 0 | AV39: 0 | AW39: 0 | AX39: 0 | AY39: 0 | AZ39: 0 | BA39: 0
A40: 0 | B40: 0 | D40: 34 | N40: 0 | O40: 0 | P40: 0 | Q40: 0 | R40: 0 | S40: 0 | T40: 0 | U40: 0 | V40: 0 | W40: 0 | X40: 0 | Y40: 0 | Z40: 0 | AA40: 0 | AB40: 0 | AC40: 0 | AD40: 0 | AG40: 0 | AH40: 0 | AI40: 0 | AJ40: 0 | AK40: 0 | AL40: 0 | AM40: 0 | AN40: 0 | AP40: 0 | AQ40: 0 | AR40: 0 | AS40: 0 | AT40: 0 | AU40: 0 | AV40: 0 | AW40: 0 | AX40: 0 | AY40: 0 | AZ40: 0 | BA40: 0
A41: 0 | B41: 0 | D41: 35 | N41: 0 | O41: 0 | P41: 0 | Q41: 0 | R41: 0 | S41: 0 | T41: 0 | U41: 0 | V41: 0 | W41: 0 | X41: 0 | Y41: 0 | Z41: 0 | AA41: 0 | AB41: 0 | AC41: 0 | AD41: 0 | AG41: 0 | AH41: 0 | AI41: 0 | AJ41: 0 | AK41: 0 | AL41: 0 | AM41: 0 | AN41: 0 | AP41: 0 | AQ41: 0 | AR41: 0 | AS41: 0 | AT41: 0 | AU41: 0 | AV41: 0 | AW41: 0 | AX41: 0 | AY41: 0 | AZ41: 0 | BA41: 0
A42: 0 | B42: 0 | D42: 36 | N42: 0 | O42: 0 | P42: 0 | Q42: 0 | R42: 0 | S42: 0 | T42: 0 | U42: 0 | V42: 0 | W42: 0 | X42: 0 | Y42: 0 | Z42: 0 | AA42: 0 | AB42: 0 | AC42: 0 | AD42: 0 | AG42: 0 | AH42: 0 | AI42: 0 | AJ42: 0 | AK42: 0 | AL42: 0 | AM42: 0 | AN42: 0 | AP42: 0 | AQ42: 0 | AR42: 0 | AS42: 0 | AT42: 0 | AU42: 0 | AV42: 0 | AW42: 0 | AX42: 0 | AY42: 0 | AZ42: 0 | BA42: 0
A43: 0 | B43: 0 | D43: 37 | N43: 0 | O43: 0 | P43: 0 | Q43: 0 | R43: 0 | S43: 0 | T43: 0 | U43: 0 | V43: 0 | W43: 0 | X43: 0 | Y43: 0 | Z43: 0 | AA43: 0 | AB43: 0 | AC43: 0 | AD43: 0 | AG43: 0 | AH43: 0 | AI43: 0 | AJ43: 0 | AK43: 0 | AL43: 0 | AM43: 0 | AN43: 0 | AP43: 0 | AQ43: 0 | AR43: 0 | AS43: 0 | AT43: 0 | AU43: 0 | AV43: 0 | AW43: 0 | AX43: 0 | AY43: 0 | AZ43: 0 | BA43: 0
A44: 0 | B44: 0 | D44: 38 | N44: 0 | O44: 0 | P44: 0 | Q44: 0 | R44: 0 | S44: 0 | T44: 0 | U44: 0 | V44: 0 | W44: 0 | X44: 0 | Y44: 0 | Z44: 0 | AA44: 0 | AB44: 0 | AC44: 0 | AD44: 0 | AG44: 0 | AH44: 0 | AI44: 0 | AJ44: 0 | AK44: 0 | AL44: 0 | AM44: 0 | AN44: 0 | AP44: 0 | AQ44: 0 | AR44: 0 | AS44: 0 | AT44: 0 | AU44: 0 | AV44: 0 | AW44: 0 | AX44: 0 | AY44: 0 | AZ44: 0 | BA44: 0
A45: 0 | B45: 0 | D45: 39 | N45: 0 | O45: 0 | P45: 0 | Q45: 0 | R45: 0 | S45: 0 | T45: 0 | U45: 0 | V45: 0 | W45: 0 | X45: 0 | Y45: 0 | Z45: 0 | AA45: 0 | AB45: 0 | AC45: 0 | AD45: 0 | AG45: 0 | AH45: 0 | AI45: 0 | AJ45: 0 | AK45: 0 | AL45: 0 | AM45: 0 | AN45: 0 | AP45: 0 | AQ45: 0 | AR45: 0 | AS45: 0 | AT45: 0 | AU45: 0 | AV45: 0 | AW45: 0 | AX45: 0 | AY45: 0 | AZ45: 0 | BA45: 0
A46: 0 | B46: 0 | G46: =IF(F46>0,50000,0) -> 0 | N46: 0 | O46: 0 | P46: 0 | Q46: 0 | R46: 0 | S46: 0 | T46: 0 | U46: 0 | V46: 0 | W46: 0 | X46: 0 | Y46: 0 | Z46: 0 | AA46: 0 | AB46: 0 | AC46: 0 | AD46: 0 | AG46: 0 | AH46: 0 | AI46: 0 | AJ46: 0 | AK46: 0 | AL46: 0 | AM46: 0 | AN46: 0 | AP46: 0 | AQ46: 0 | AR46: 0 | AS46: 0 | AT46: 0 | AU46: 0 | AV46: 0 | AW46: 0 | AX46: 0 | AY46: 0 | AZ46: 0 | BA46: 0
A47: 0 | B47: 0 | G47: 0 | N47: 0 | O47: 0 | P47: 0 | Q47: 0 | R47: 0 | S47: 0 | T47: 0 | U47: 0 | V47: 0 | W47: 0 | X47: 0 | Y47: 0 | Z47: 0 | AA47: 0 | AB47: 0 | AC47: 0 | AD47: 0 | AG47: 0 | AH47: 0 | AI47: 0 | AJ47: 0 | AK47: 0 | AL47: 0 | AM47: 0 | AN47: 0 | AP47: 0 | AQ47: 0 | AR47: 0 | AS47: 0 | AT47: 0 | AU47: 0 | AV47: 0 | AW47: 0 | AX47: 0 | AY47: 0 | AZ47: 0 | BA47: 0
A48: 0 | B48: 0 | G48: 0 | N48: 0 | O48: 0 | P48: 0 | Q48: 0 | R48: 0 | S48: 0 | T48: 0 | U48: 0 | V48: 0 | W48: 0 | X48: 0 | Y48: 0 | Z48: 0 | AA48: 0 | AB48: 0 | AC48: 0 | AD48: 0 | AG48: 0 | AH48: 0 | AI48: 0 | AJ48: 0 | AK48: 0 | AL48: 0 | AM48: 0 | AN48: 0 | AP48: 0 | AQ48: 0 | AR48: 0 | AS48: 0 | AT48: 0 | AU48: 0 | AV48: 0 | AW48: 0 | AX48: 0 | AY48: 0 | AZ48: 0 | BA48: 0
A49: 0 | B49: 0 | G49: 0 | N49: 0 | O49: 0 | P49: 0 | Q49: 0 | R49: 0 | S49: 0 | T49: 0 | U49: 0 | V49: 0 | W49: 0 | X49: 0 | Y49: 0 | Z49: 0 | AA49: 0 | AB49: 0 | AC49: 0 | AD49: 0 | AG49: 0 | AH49: 0 | AI49: 0 | AJ49: 0 | AK49: 0 | AL49: 0 | AM49: 0 | AN49: 0 | AP49: 0 | AQ49: 0 | AR49: 0 | AS49: 0 | AT49: 0 | AU49: 0 | AV49: 0 | AW49: 0 | AX49: 0 | AY49: 0 | AZ49: 0 | BA49: 0
A50: 0 | B50: 0 | G50: 0 | N50: 0 | O50: 0 | P50: 0 | Q50: 0 | R50: 0 | S50: 0 | T50: 0 | U50: 0 | V50: 0 | W50: 0 | X50: 0 | Y50: 0 | Z50: 0 | AA50: 0 | AB50: 0 | AC50: 0 | AD50: 0 | AG50: 0 | AH50: 0 | AI50: 0 | AJ50: 0 | AK50: 0 | AL50: 0 | AM50: 0 | AN50: 0 | AP50: 0 | AQ50: 0 | AR50: 0 | AS50: 0 | AT50: 0 | AU50: 0 | AV50: 0 | AW50: 0 | AX50: 0 | AY50: 0 | AZ50: 0 | BA50: 0
A51: 0 | B51: 0 | G51: 0 | N51: 0 | O51: 0 | P51: 0 | Q51: 0 | R51: 0 | S51: 0 | T51: 0 | U51: 0 | V51: 0 | W51: 0 | X51: 0 | Y51: 0 | Z51: 0 | AA51: 0 | AB51: 0 | AC51: 0 | AD51: 0 | AG51: 0 | AH51: 0 | AI51: 0 | AJ51: 0 | AK51: 0 | AL51: 0 | AM51: 0 | AN51: 0 | AP51: 0 | AQ51: 0 | AR51: 0 | AS51: 0 | AT51: 0 | AU51: 0 | AV51: 0 | AW51: 0 | AX51: 0 | AY51: 0 | AZ51: 0 | BA51: 0
A52: 0 | B52: 0 | G52: 0 | N52: 0 | O52: 0 | P52: 0 | Q52: 0 | R52: 0 | S52: 0 | T52: 0 | U52: 0 | V52: 0 | W52: 0 | X52: 0 | Y52: 0 | Z52: 0 | AA52: 0 | AB52: 0 | AC52: 0 | AD52: 0 | AG52: 0 | AH52: 0 | AI52: 0 | AJ52: 0 | AK52: 0 | AL52: 0 | AM52: 0 | AN52: 0 | AP52: 0 | AQ52: 0 | AR52: 0 | AS52: 0 | AT52: 0 | AU52: 0 | AV52: 0 | AW52: 0 | AX52: 0 | AY52: 0 | AZ52: 0 | BA52: 0
A53: 0 | B53: 0 | G53: 0 | N53: 0 | O53: 0 | P53: 0 | Q53: 0 | R53: 0 | S53: 0 | T53: 0 | U53: 0 | V53: 0 | W53: 0 | X53: 0 | Y53: 0 | Z53: 0 | AA53: 0 | AB53: 0 | AC53: 0 | AD53: 0 | AG53: 0 | AH53: 0 | AI53: 0 | AJ53: 0 | AK53: 0 | AL53: 0 | AM53: 0 | AN53: 0 | AP53: 0 | AQ53: 0 | AR53: 0 | AS53: 0 | AT53: 0 | AU53: 0 | AV53: 0 | AW53: 0 | AX53: 0 | AY53: 0 | AZ53: 0 | BA53: 0
A54: 0 | B54: 0 | G54: 0 | N54: 0 | O54: 0 | P54: 0 | Q54: 0 | R54: 0 | S54: 0 | T54: 0 | U54: 0 | V54: 0 | W54: 0 | X54: 0 | Y54: 0 | Z54: 0 | AA54: 0 | AB54: 0 | AC54: 0 | AD54: 0 | AG54: 0 | AH54: 0 | AI54: 0 | AJ54: 0 | AK54: 0 | AL54: 0 | AM54: 0 | AN54: 0 | AP54: 0 | AQ54: 0 | AR54: 0 | AS54: 0 | AT54: 0 | AU54: 0 | AV54: 0 | AW54: 0 | AX54: 0 | AY54: 0 | AZ54: 0 | BA54: 0
A55: 0 | B55: 0 | G55: 0 | N55: 0 | O55: 0 | P55: 0 | Q55: 0 | R55: 0 | S55: 0 | T55: 0 | U55: 0 | V55: 0 | W55: 0 | X55: 0 | Y55: 0 | Z55: 0 | AA55: 0 | AB55: 0 | AC55: 0 | AD55: 0 | AG55: 0 | AH55: 0 | AI55: 0 | AJ55: 0 | AK55: 0 | AL55: 0 | AM55: 0 | AN55: 0 | AP55: 0 | AQ55: 0 | AR55: 0 | AS55: 0 | AT55: 0 | AU55: 0 | AV55: 0 | AW55: 0 | AX55: 0 | AY55: 0 | AZ55: 0 | BA55: 0
A56: =MIN(T56,AC56) -> 0 | B56: 0 | G56: =IF(F56>0,50000,0) -> 0 | N56: =F56-G56-H56-I56-J56-K56-L56-M56 -> 0 | O56: =IF(N56<250000,0,IF(N56>500000,12500,IF(N56<500000,ROUND((N56-250000)*0.05,0),0))) -> 0 | P56: =IF(N56<500000,0,IF(N56>1000000,100000,ROUND((N56-500000)*0.2,0))) -> 0 | Q56: =IF(N56<1000000,0,ROUND((N56-1000000)*0.3,0)) -> 0 | R56: =IF(F56>0,(O56+P56+Q56),0) -> 0 | S56: =ROUND(R56*0.04,0) -> 0 | T56: =R56+S56 -> 0 | U56: =IF(F56>500000,12500,0) -> 0 | V56: =IF(F56<500000,0,IF(F56>750000,25000,ROUND((F56-500000)*0.1,0))) -> 0 | W56: =IF(F56<750000,0,IF(F56>1000000,37500,ROUND((F56-750000)*0.15,0))) -> 0 | X56: =IF(F56<1000000,0,IF(F56>1250000,50000,ROUND((F56-1000000)*0.2,0))) -> 0 | Y56: =IF(F56<1250000,0,IF(F56>1500000,62500,ROUND((F56-1250000)*0.25,0))) -> 0 | Z56: =IF(F56<1500000,0,ROUND((F56-1500000)*0.3,0)) -> 0 | AA56: =U56+V56+W56+X56+Y56+Z56 -> 0 | AB56: =ROUND(AA56*0.04,0) -> 0 | AC56: =AA56+AB56 -> 0 | AD56: 0 | AG56: =AE56+AF56 -> 0 | AH56: =MIN(AP56,AV56) -> 0 | AI56: =MIN(AQ56,AW56) -> 0 | AJ56: =MIN(AR56,AX56) -> 0 | AK56: =AH56+AI56+AJ56 -> 0 | AL56: =MIN(T56,AC56) -> 0 | AM56: 0 | AN56: 0 | AP56: =IF($AE$4="जन.-2023 के वेतन तक की गई Itax कटौती",0,IF(T56<=12500,0,IF(AG56>T56,0,ROUNDUP((T56-AG56)/3,-3)))) -> 0 | AQ56: =IF($AE$4="जन.-2023 के वेतन तक की गई Itax कटौती",0,IF(T56<=12500,0,IF(AG56>T56,0,ROUNDUP((T56-AG56)/3,-3)))) -> 0 | AR56: =IF($AE$4="जन.-2023 के वेतन तक की गई Itax कटौती",ROUNDUP((T56-AG56),-3),IF(T56<=12500,0,IF(AG56>T56,0,ROUNDUP((T56-AG56)/3,-3)))) -> 0 | AS56: =AP56+AQ56+AR56 -> 0 | AT56: =AS56+AE56 -> 0 | AU56: =AT56-T56 -> 0 | AV56: =IF($AE$4="जन.-2023 के वेतन तक की गई Itax कटौती",0,IF(AC56<=12500,0,IF(AG56>AC56,0,ROUNDUP((AC56-AG56)/3,-3)))) -> 0 | AW56: =IF($AE$4="जन.-2023 के वेतन तक की गई Itax कटौती",0,IF(AC56<=12500,0,IF(AG56>AC56,0,ROUNDUP((AC56-AG56)/3,-3)))) -> 0 | AX56: =IF($AE$4="जन.-2023 के वेतन तक की गई Itax कटौती",ROUNDUP((AC56-AG56),-3),IF(AC56<=12500,0,IF(AG56>AC56,0,ROUNDUP((AC56-AG56)/3,-3)))) -> 0 | AY56: =AV56+AW56+AX56 -> 0 | AZ56: =AY56+AE56 -> 0 | BA56: =AZ56-AC56 -> 0
A57: 0 | B57: 0 | G57: 0 | N57: 0 | O57: 0 | P57: 0 | Q57: 0 | R57: 0 | S57: 0 | T57: 0 | U57: 0 | V57: 0 | W57: 0 | X57: 0 | Y57: 0 | Z57: 0 | AA57: 0 | AB57: 0 | AC57: 0 | AD57: 0 | AG57: 0 | AH57: 0 | AI57: 0 | AJ57: 0 | AK57: 0 | AL57: 0 | AM57: 0 | AN57: 0 | AP57: 0 | AQ57: 0 | AR57: 0 | AS57: 0 | AT57: 0 | AU57: 0 | AV57: 0 | AW57: 0 | AX57: 0 | AY57: 0 | AZ57: 0 | BA57: 0
A58: 0 | B58: 0 | G58: 0 | N58: 0 | O58: 0 | P58: 0 | Q58: 0 | R58: 0 | S58: 0 | T58: 0 | U58: 0 | V58: 0 | W58: 0 | X58: 0 | Y58: 0 | Z58: 0 | AA58: 0 | AB58: 0 | AC58: 0 | AD58: 0 | AG58: 0 | AH58: 0 | AI58: 0 | AJ58: 0 | AK58: 0 | AL58: 0 | AM58: 0 | AN58: 0 | AP58: 0 | AQ58: 0 | AR58: 0 | AS58: 0 | AT58: 0 | AU58: 0 | AV58: 0 | AW58: 0 | AX58: 0 | AY58: 0 | AZ58: 0 | BA58: 0
A59: 0 | B59: 0 | G59: 0 | N59: 0 | O59: 0 | P59: 0 | Q59: 0 | R59: 0 | S59: 0 | T59: 0 | U59: 0 | V59: 0 | W59: 0 | X59: 0 | Y59: 0 | Z59: 0 | AA59: 0 | AB59: 0 | AC59: 0 | AD59: 0 | AG59: 0 | AH59: 0 | AI59: 0 | AJ59: 0 | AK59: 0 | AL59: 0 | AM59: 0 | AN59: 0 | AP59: 0 | AQ59: 0 | AR59: 0 | AS59: 0 | AT59: 0 | AU59: 0 | AV59: 0 | AW59: 0 | AX59: 0 | AY59: 0 | AZ59: 0 | BA59: 0
A60: 0 | B60: 0 | G60: 0 | N60: 0 | O60: 0 | P60: 0 | Q60: 0 | R60: 0 | S60: 0 | T60: 0 | U60: 0 | V60: 0 | W60: 0 | X60: 0 | Y60: 0 | Z60: 0 | AA60: 0 | AB60: 0 | AC60: 0 | AD60: 0 | AG60: 0 | AH60: 0 | AI60: 0 | AJ60: 0 | AK60: 0 | AL60: 0 | AM60: 0 | AN60: 0 | AP60: 0 | AQ60: 0 | AR60: 0 | AS60: 0 | AT60: 0 | AU60: 0 | AV60: 0 | AW60: 0 | AX60: 0 | AY60: 0 | AZ60: 0 | BA60: 0
A61: 0 | B61: 0 | G61: 0 | N61: 0 | O61: 0 | P61: 0 | Q61: 0 | R61: 0 | S61: 0 | T61: 0 | U61: 0 | V61: 0 | W61: 0 | X61: 0 | Y61: 0 | Z61: 0 | AA61: 0 | AB61: 0 | AC61: 0 | AD61: 0 | AG61: 0 | AH61: 0 | AI61: 0 | AJ61: 0 | AK61: 0 | AL61: 0 | AM61: 0 | AN61: 0 | AP61: 0 | AQ61: 0 | AR61: 0 | AS61: 0 | AT61: 0 | AU61: 0 | AV61: 0 | AW61: 0 | AX61: 0 | AY61: 0 | AZ61: 0 | BA61: 0
A62: 0 | B62: 0 | G62: 0 | N62: 0 | O62: 0 | P62: 0 | Q62: 0 | R62: 0 | S62: 0 | T62: 0 | U62: 0 | V62: 0 | W62: 0 | X62: 0 | Y62: 0 | Z62: 0 | AA62: 0 | AB62: 0 | AC62: 0 | AD62: 0 | AG62: 0 | AH62: 0 | AI62: 0 | AJ62: 0 | AK62: 0 | AL62: 0 | AM62: 0 | AN62: 0 | AP62: 0 | AQ62: 0 | AR62: 0 | AS62: 0 | AT62: 0 | AU62: 0 | AV62: 0 | AW62: 0 | AX62: 0 | AY62: 0 | AZ62: 0 | BA62: 0
A63: 0 | B63: 0 | G63: 0 | N63: 0 | O63: 0 | P63: 0 | Q63: 0 | R63: 0 | S63: 0 | T63: 0 | U63: 0 | V63: 0 | W63: 0 | X63: 0 | Y63: 0 | Z63: 0 | AA63: 0 | AB63: 0 | AC63: 0 | AD63: 0 | AG63: 0 | AH63: 0 | AI63: 0 | AJ63: 0 | AK63: 0 | AL63: 0 | AM63: 0 | AN63: 0 | AP63: 0 | AQ63: 0 | AR63: 0 | AS63: 0 | AT63: 0 | AU63: 0 | AV63: 0 | AW63: 0 | AX63: 0 | AY63: 0 | AZ63: 0 | BA63: 0
A64: 0 | B64: 0 | G64: 0 | N64: 0 | O64: 0 | P64: 0 | Q64: 0 | R64: 0 | S64: 0 | T64: 0 | U64: 0 | V64: 0 | W64: 0 | X64: 0 | Y64: 0 | Z64: 0 | AA64: 0 | AB64: 0 | AC64: 0 | AD64: 0 | AG64: 0 | AH64: 0 | AI64: 0 | AJ64: 0 | AK64: 0 | AL64: 0 | AM64: 0 | AN64: 0 | AP64: 0 | AQ64: 0 | AR64: 0 | AS64: 0 | AT64: 0 | AU64: 0 | AV64: 0 | AW64: 0 | AX64: 0 | AY64: 0 | AZ64: 0 | BA64: 0
A65: 0 | B65: 0 | G65: 0 | N65: 0 | O65: 0 | P65: 0 | Q65: 0 | R65: 0 | S65: 0 | T65: 0 | U65: 0 | V65: 0 | W65: 0 | X65: 0 | Y65: 0 | Z65: 0 | AA65: 0 | AB65: 0 | AC65: 0 | AD65: 0 | AG65: 0 | AH65: 0 | AI65: 0 | AJ65: 0 | AK65: 0 | AL65: 0 | AM65: 0 | AN65: 0 | AP65: 0 | AQ65: 0 | AR65: 0 | AS65: 0 | AT65: 0 | AU65: 0 | AV65: 0 | AW65: 0 | AX65: 0 | AY65: 0 | AZ65: 0 | BA65: 0
A66: =MIN(T66,AC66) -> 0 | B66: 0 | G66: =IF(F66>0,50000,0) -> 0 | N66: =F66-G66-H66-I66-J66-K66-L66-M66 -> 0 | O66: =IF(N66<250000,0,IF(N66>500000,12500,IF(N66<500000,ROUND((N66-250000)*0.05,0),0))) -> 0 | P66: =IF(N66<500000,0,IF(N66>1000000,100000,ROUND((N66-500000)*0.2,0))) -> 0 | Q66: =IF(N66<1000000,0,ROUND((N66-1000000)*0.3,0)) -> 0 | R66: =IF(F66>0,(O66+P66+Q66),0) -> 0 | S66: =ROUND(R66*0.04,0) -> 0 | T66: =R66+S66 -> 0 | U66: =IF(F66>500000,12500,0) -> 0 | V66: =IF(F66<500000,0,IF(F66>750000,25000,ROUND((F66-500000)*0.1,0))) -> 0 | W66: =IF(F66<750000,0,IF(F66>1000000,37500,ROUND((F66-750000)*0.15,0))) -> 0 | X66: =IF(F66<1000000,0,IF(F66>1250000,50000,ROUND((F66-1000000)*0.2,0))) -> 0 | Y66: =IF(F66<1250000,0,IF(F66>1500000,62500,ROUND((F66-1250000)*0.25,0))) -> 0 | Z66: =IF(F66<1500000,0,ROUND((F66-1500000)*0.3,0)) -> 0 | AA66: =U66+V66+W66+X66+Y66+Z66 -> 0 | AB66: =ROUND(AA66*0.04,0) -> 0 | AC66: =AA66+AB66 -> 0 | AD66: 0 | AG66: =AE66+AF66 -> 0 | AH66: =MIN(AP66,AV66) -> 0 | AI66: =MIN(AQ66,AW66) -> 0 | AJ66: =MIN(AR66,AX66) -> 0 | AK66: =AH66+AI66+AJ66 -> 0 | AL66: =MIN(T66,AC66) -> 0 | AM66: 0 | AN66: 0 | AP66: =IF($AE$4="जन.-2023 के वेतन तक की गई Itax कटौती",0,IF(T66<=12500,0,IF(AG66>T66,0,ROUNDUP((T66-AG66)/3,-3)))) -> 0 | AQ66: =IF($AE$4="जन.-2023 के वेतन तक की गई Itax कटौती",0,IF(T66<=12500,0,IF(AG66>T66,0,ROUNDUP((T66-AG66)/3,-3)))) -> 0 | AR66: =IF($AE$4="जन.-2023 के वेतन तक की गई Itax कटौती",ROUNDUP((T66-AG66),-3),IF(T66<=12500,0,IF(AG66>T66,0,ROUNDUP((T66-AG66)/3,-3)))) -> 0 | AS66: =AP66+AQ66+AR66 -> 0 | AT66: =AS66+AE66 -> 0 | AU66: =AT66-T66 -> 0 | AV66: =IF($AE$4="जन.-2023 के वेतन तक की गई Itax कटौती",0,IF(AC66<=12500,0,IF(AG66>AC66,0,ROUNDUP((AC66-AG66)/3,-3)))) -> 0 | AW66: =IF($AE$4="जन.-2023 के वेतन तक की गई Itax कटौती",0,IF(AC66<=12500,0,IF(AG66>AC66,0,ROUNDUP((AC66-AG66)/3,-3)))) -> 0 | AX66: =IF($AE$4="जन.-2023 के वेतन तक की गई Itax कटौती",ROUNDUP((AC66-AG66),-3),IF(AC66<=12500,0,IF(AG66>AC66,0,ROUNDUP((AC66-AG66)/3,-3)))) -> 0 | AY66: =AV66+AW66+AX66 -> 0 | AZ66: =AY66+AE66 -> 0 | BA66: =AZ66-AC66 -> 0
A67: 0 | B67: 0 | G67: 0 | N67: 0 | O67: 0 | P67: 0 | Q67: 0 | R67: 0 | S67: 0 | T67: 0 | U67: 0 | V67: 0 | W67: 0 | X67: 0 | Y67: 0 | Z67: 0 | AA67: 0 | AB67: 0 | AC67: 0 | AD67: 0 | AG67: 0 | AH67: 0 | AI67: 0 | AJ67: 0 | AK67: 0 | AL67: 0 | AM67: 0 | AN67: 0 | AP67: 0 | AQ67: 0 | AR67: 0 | AS67: 0 | AT67: 0 | AU67: 0 | AV67: 0 | AW67: 0 | AX67: 0 | AY67: 0 | AZ67: 0 | BA67: 0
A68: 0 | B68: 0 | G68: 0 | N68: 0 | O68: 0 | P68: 0 | Q68: 0 | R68: 0 | S68: 0 | T68: 0 | U68: 0 | V68: 0 | W68: 0 | X68: 0 | Y68: 0 | Z68: 0 | AA68: 0 | AB68: 0 | AC68: 0 | AD68: 0 | AG68: 0 | AH68: 0 | AI68: 0 | AJ68: 0 | AK68: 0 | AL68: 0 | AM68: 0 | AN68: 0 | AP68: 0 | AQ68: 0 | AR68: 0 | AS68: 0 | AT68: 0 | AU68: 0 | AV68: 0 | AW68: 0 | AX68: 0 | AY68: 0 | AZ68: 0 | BA68: 0
A69: 0 | B69: 0 | G69: 0 | N69: 0 | O69: 0 | P69: 0 | Q69: 0 | R69: 0 | S69: 0 | T69: 0 | U69: 0 | V69: 0 | W69: 0 | X69: 0 | Y69: 0 | Z69: 0 | AA69: 0 | AB69: 0 | AC69: 0 | AD69: 0 | AG69: 0 | AH69: 0 | AI69: 0 | AJ69: 0 | AK69: 0 | AL69: 0 | AM69: 0 | AN69: 0 | AP69: 0 | AQ69: 0 | AR69: 0 | AS69: 0 | AT69: 0 | AU69: 0 | AV69: 0 | AW69: 0 | AX69: 0 | AY69: 0 | AZ69: 0 | BA69: 0
A70: 0 | B70: 0 | G70: 0 | N70: 0 | O70: 0 | P70: 0 | Q70: 0 | R70: 0 | S70: 0 | T70: 0 | U70: 0 | V70: 0 | W70: 0 | X70: 0 | Y70: 0 | Z70: 0 | AA70: 0 | AB70: 0 | AC70: 0 | AD70: 0 | AG70: 0 | AH70: 0 | AI70: 0 | AJ70: 0 | AK70: 0 | AL70: 0 | AM70: 0 | AN70: 0 | AP70: 0 | AQ70: 0 | AR70: 0 | AS70: 0 | AT70: 0 | AU70: 0 | AV70: 0 | AW70: 0 | AX70: 0 | AY70: 0 | AZ70: 0 | BA70: 0
A71: 0 | B71: =IF(A71=0,0,IF(A71<=12500,"R",0)) -> 0 | G71: 0 | N71: 0 | O71: 0 | P71: 0 | Q71: 0 | R71: 0 | S71: 0 | T71: 0 | U71: 0 | V71: 0 | W71: 0 | X71: 0 | Y71: 0 | Z71: 0 | AA71: 0 | AB71: 0 | AC71: 0 | AD71: 0 | AG71: 0 | AH71: 0 | AI71: 0 | AJ71: 0 | AK71: 0 | AL71: 0 | AM71: 0 | AN71: 0 | AP71: 0 | AQ71: 0 | AR71: 0 | AS71: 0 | AT71: 0 | AU71: 0 | AV71: 0 | AW71: 0 | AX71: 0 | AY71: 0 | AZ71: 0 | BA71: 0
A72: 0 | B72: 0 | G72: 0 | N72: 0 | O72: 0 | P72: 0 | Q72: 0 | R72: 0 | S72: 0 | T72: 0 | U72: 0 | V72: 0 | W72: 0 | X72: 0 | Y72: 0 | Z72: 0 | AA72: 0 | AB72: 0 | AC72: 0 | AD72: =IF(T72=0,0,IF(T72>AC72,"New Regime","Old Regime")) -> 0 | AG72: 0 | AH72: 0 | AI72: 0 | AJ72: 0 | AK72: 0 | AL72: 0 | AM72: =IF(AL72<=12500,-AG72,AL72-(AG72+AK72)) -> 0 | AN72: 0 | AP72: 0 | AQ72: 0 | AR72: 0 | AS72: 0 | AT72: 0 | AU72: 0 | AV72: 0 | AW72: 0 | AX72: 0 | AY72: 0 | AZ72: 0 | BA72: 0
A73: 0 | B73: 0 | G73: 0 | N73: 0 | O73: 0 | P73: 0 | Q73: 0 | R73: 0 | S73: 0 | T73: 0 | U73: 0 | V73: 0 | W73: 0 | X73: 0 | Y73: 0 | Z73: 0 | AA73: 0 | AB73: 0 | AC73: 0 | AD73: 0 | AG73: 0 | AH73: 0 | AI73: 0 | AJ73: 0 | AK73: 0 | AL73: 0 | AM73: 0 | AN73: 0 | AP73: 0 | AQ73: 0 | AR73: 0 | AS73: 0 | AT73: 0 | AU73: 0 | AV73: 0 | AW73: 0 | AX73: 0 | AY73: 0 | AZ73: 0 | BA73: 0
A74: 0 | B74: 0 | G74: 0 | N74: 0 | O74: 0 | P74: 0 | Q74: 0 | R74: 0 | S74: 0 | T74: 0 | U74: 0 | V74: 0 | W74: 0 | X74: 0 | Y74: 0 | Z74: 0 | AA74: 0 | AB74: 0 | AC74: 0 | AD74: 0 | AG74: 0 | AH74: 0 | AI74: 0 | AJ74: 0 | AK74: 0 | AL74: 0 | AM74: 0 | AN74: 0 | AP74: 0 | AQ74: 0 | AR74: 0 | AS74: 0 | AT74: 0 | AU74: 0 | AV74: 0 | AW74: 0 | AX74: 0 | AY74: 0 | AZ74: 0 | BA74: 0
A75: 0 | B75: 0 | G75: 0 | N75: 0 | O75: 0 | P75: 0 | Q75: 0 | R75: 0 | S75: 0 | T75: 0 | U75: 0 | V75: 0 | W75: 0 | X75: 0 | Y75: 0 | Z75: 0 | AA75: 0 | AB75: 0 | AC75: 0 | AD75: 0 | AG75: 0 | AH75: 0 | AI75: 0 | AJ75: 0 | AK75: 0 | AL75: 0 | AM75: 0 | AN75: 0 | AP75: 0 | AQ75: 0 | AR75: 0 | AS75: 0 | AT75: 0 | AU75: 0 | AV75: 0 | AW75: 0 | AX75: 0 | AY75: 0 | AZ75: 0 | BA75: 0
A76: 0 | B76: 0 | G76: 0 | N76: 0 | O76: 0 | P76: 0 | Q76: 0 | R76: 0 | S76: 0 | T76: 0 | U76: 0 | V76: 0 | W76: 0 | X76: 0 | Y76: 0 | Z76: 0 | AA76: 0 | AB76: 0 | AC76: 0 | AD76: 0 | AG76: 0 | AH76: 0 | AI76: 0 | AJ76: 0 | AK76: 0 | AL76: 0 | AM76: 0 | AN76: 0 | AP76: 0 | AQ76: 0 | AR76: 0 | AS76: 0 | AT76: 0 | AU76: 0 | AV76: 0 | AW76: 0 | AX76: 0 | AY76: 0 | AZ76: 0 | BA76: 0
A77: 0 | B77: 0 | G77: 0 | N77: 0 | O77: 0 | P77: 0 | Q77: 0 | R77: 0 | S77: 0 | T77: 0 | U77: 0 | V77: 0 | W77: 0 | X77: 0 | Y77: 0 | Z77: 0 | AA77: 0 | AB77: 0 | AC77: 0 | AD77: 0 | AG77: 0 | AH77: 0 | AI77: 0 | AJ77: 0 | AK77: 0 | AL77: 0 | AM77: 0 | AN77: 0 | AP77: 0 | AQ77: 0 | AR77: 0 | AS77: 0 | AT77: 0 | AU77: 0 | AV77: 0 | AW77: 0 | AX77: 0 | AY77: 0 | AZ77: 0 | BA77: 0
A78: 0 | B78: 0 | G78: 0 | N78: 0 | O78: 0 | P78: 0 | Q78: 0 | R78: 0 | S78: 0 | T78: 0 | U78: 0 | V78: 0 | W78: 0 | X78: 0 | Y78: 0 | Z78: 0 | AA78: 0 | AB78: 0 | AC78: 0 | AD78: 0 | AG78: 0 | AH78: 0 | AI78: 0 | AJ78: 0 | AK78: 0 | AL78: 0 | AM78: 0 | AN78: 0 | AP78: 0 | AQ78: 0 | AR78: 0 | AS78: 0 | AT78: 0 | AU78: 0 | AV78: 0 | AW78: 0 | AX78: 0 | AY78: 0 | AZ78: 0 | BA78: 0
A79: 0 | B79: 0 | G79: 0 | N79: 0 | O79: 0 | P79: 0 | Q79: 0 | R79: 0 | S79: 0 | T79: 0 | U79: 0 | V79: 0 | W79: 0 | X79: 0 | Y79: 0 | Z79: 0 | AA79: 0 | AB79: 0 | AC79: 0 | AD79: 0 | AG79: 0 | AH79: 0 | AI79: 0 | AJ79: 0 | AK79: 0 | AL79: 0 | AM79: 0 | AN79: 0 | AP79: 0 | AQ79: 0 | AR79: 0 | AS79: 0 | AT79: 0 | AU79: 0 | AV79: 0 | AW79: 0 | AX79: 0 | AY79: 0 | AZ79: 0 | BA79: 0
A80: 0 | B80: 0 | G80: 0 | N80: 0 | O80: 0 | P80: 0 | Q80: 0 | R80: 0 | S80: 0 | T80: 0 | U80: 0 | V80: 0 | W80: 0 | X80: 0 | Y80: 0 | Z80: 0 | AA80: 0 | AB80: 0 | AC80: 0 | AD80: 0 | AG80: 0 | AH80: 0 | AI80: 0 | AJ80: 0 | AK80: 0 | AL80: 0 | AM80: 0 | AN80: 0 | AP80: 0 | AQ80: 0 | AR80: 0 | AS80: 0 | AT80: 0 | AU80: 0 | AV80: 0 | AW80: 0 | AX80: 0 | AY80: 0 | AZ80: 0 | BA80: 0
A81: 0 | B81: 0 | G81: 0 | N81: 0 | O81: 0 | P81: 0 | Q81: 0 | R81: 0 | S81: 0 | T81: 0 | U81: 0 | V81: 0 | W81: 0 | X81: 0 | Y81: 0 | Z81: 0 | AA81: 0 | AB81: 0 | AC81: 0 | AD81: 0 | AG81: 0 | AH81: 0 | AI81: 0 | AJ81: 0 | AK81: 0 | AL81: 0 | AM81: 0 | AN81: 0 | AP81: 0 | AQ81: 0 | AR81: 0 | AS81: 0 | AT81: 0 | AU81: 0 | AV81: 0 | AW81: 0 | AX81: 0 | AY81: 0 | AZ81: 0 | BA81: 0
A82: 0 | B82: 0 | G82: 0 | N82: 0 | O82: 0 | P82: 0 | Q82: 0 | R82: 0 | S82: 0 | T82: 0 | U82: 0 | V82: 0 | W82: 0 | X82: 0 | Y82: 0 | Z82: 0 | AA82: 0 | AB82: 0 | AC82: 0 | AD82: 0 | AG82: 0 | AH82: 0 | AI82: 0 | AJ82: 0 | AK82: 0 | AL82: 0 | AM82: 0 | AN82: 0 | AP82: 0 | AQ82: 0 | AR82: 0 | AS82: 0 | AT82: 0 | AU82: 0 | AV82: 0 | AW82: 0 | AX82: 0 | AY82: 0 | AZ82: 0 | BA82: 0
A83: 0 | B83: 0 | G83: 0 | N83: 0 | O83: 0 | P83: 0 | Q83: 0 | R83: 0 | S83: 0 | T83: 0 | U83: 0 | V83: 0 | W83: 0 | X83: 0 | Y83: 0 | Z83: 0 | AA83: 0 | AB83: 0 | AC83: 0 | AD83: 0 | AG83: 0 | AH83: 0 | AI83: 0 | AJ83: 0 | AK83: 0 | AL83: 0 | AM83: 0 | AN83: 0 | AP83: 0 | AQ83: 0 | AR83: 0 | AS83: 0 | AT83: 0 | AU83: 0 | AV83: 0 | AW83: 0 | AX83: 0 | AY83: 0 | AZ83: 0 | BA83: 0
A84: 0 | B84: 0 | G84: 0 | N84: 0 | O84: 0 | P84: 0 | Q84: 0 | R84: 0 | S84: 0 | T84: 0 | U84: 0 | V84: 0 | W84: 0 | X84: 0 | Y84: 0 | Z84: 0 | AA84: 0 | AB84: 0 | AC84: 0 | AD84: 0 | AG84: 0 | AH84: 0 | AI84: 0 | AJ84: 0 | AK84: 0 | AL84: 0 | AM84: 0 | AN84: 0 | AP84: 0 | AQ84: 0 | AR84: 0 | AS84: 0 | AT84: 0 | AU84: 0 | AV84: 0 | AW84: 0 | AX84: 0 | AY84: 0 | AZ84: 0 | BA84: 0
A85: 0 | B85: 0 | G85: 0 | N85: 0 | O85: 0 | P85: 0 | Q85: 0 | R85: 0 | S85: 0 | T85: 0 | U85: 0 | V85: 0 | W85: 0 | X85: 0 | Y85: 0 | Z85: 0 | AA85: 0 | AB85: 0 | AC85: 0 | AD85: 0 | AG85: 0 | AH85: 0 | AI85: 0 | AJ85: 0 | AK85: 0 | AL85: 0 | AM85: 0 | AN85: 0 | AP85: 0 | AQ85: 0 | AR85: 0 | AS85: 0 | AT85: 0 | AU85: 0 | AV85: 0 | AW85: 0 | AX85: 0 | AY85: 0 | AZ85: 0 | BA85: 0
A86: 0 | B86: 0 | G86: 0 | N86: 0 | O86: 0 | P86: 0 | Q86: 0 | R86: 0 | S86: 0 | T86: 0 | U86: 0 | V86: 0 | W86: 0 | X86: 0 | Y86: 0 | Z86: 0 | AA86: 0 | AB86: 0 | AC86: 0 | AD86: 0 | AG86: 0 | AH86: 0 | AI86: 0 | AJ86: 0 | AK86: 0 | AL86: 0 | AM86: 0 | AN86: 0 | AP86: 0 | AQ86: 0 | AR86: 0 | AS86: 0 | AT86: 0 | AU86: 0 | AV86: 0 | AW86: 0 | AX86: 0 | AY86: 0 | AZ86: 0 | BA86: 0
A87: 0 | B87: 0 | G87: 0 | N87: 0 | O87: 0 | P87: 0 | Q87: 0 | R87: 0 | S87: 0 | T87: 0 | U87: 0 | V87: 0 | W87: 0 | X87: 0 | Y87: 0 | Z87: 0 | AA87: 0 | AB87: 0 | AC87: 0 | AD87: 0 | AG87: 0 | AH87: 0 | AI87: 0 | AJ87: 0 | AK87: 0 | AL87: 0 | AM87: 0 | AN87: 0 | AP87: 0 | AQ87: 0 | AR87: 0 | AS87: 0 | AT87: 0 | AU87: 0 | AV87: 0 | AW87: 0 | AX87: 0 | AY87: 0 | AZ87: 0 | BA87: 0
A88: 0 | B88: 0 | G88: 0 | N88: 0 | O88: 0 | P88: 0 | Q88: 0 | R88: 0 | S88: 0 | T88: 0 | U88: 0 | V88: 0 | W88: 0 | X88: 0 | Y88: 0 | Z88: 0 | AA88: 0 | AB88: 0 | AC88: 0 | AD88: 0 | AG88: 0 | AH88: 0 | AI88: 0 | AJ88: 0 | AK88: 0 | AL88: 0 | AM88: 0 | AN88: 0 | AP88: 0 | AQ88: 0 | AR88: 0 | AS88: 0 | AT88: 0 | AU88: 0 | AV88: 0 | AW88: 0 | AX88: 0 | AY88: 0 | AZ88: 0 | BA88: 0
A89: 0 | B89: 0 | G89: 0 | N89: 0 | O89: 0 | P89: 0 | Q89: 0 | R89: 0 | S89: 0 | T89: 0 | U89: 0 | V89: 0 | W89: 0 | X89: 0 | Y89: 0 | Z89: 0 | AA89: 0 | AB89: 0 | AC89: 0 | AD89: 0 | AG89: 0 | AH89: 0 | AI89: 0 | AJ89: 0 | AK89: 0 | AL89: 0 | AM89: 0 | AN89: 0 | AP89: 0 | AQ89: 0 | AR89: 0 | AS89: 0 | AT89: 0 | AU89: 0 | AV89: 0 | AW89: 0 | AX89: 0 | AY89: 0 | AZ89: 0 | BA89: 0
A90: 0 | B90: 0 | G90: 0 | N90: 0 | O90: 0 | P90: 0 | Q90: 0 | R90: 0 | S90: 0 | T90: 0 | U90: 0 | V90: 0 | W90: 0 | X90: 0 | Y90: 0 | Z90: 0 | AA90: 0 | AB90: 0 | AC90: 0 | AD90: 0 | AG90: 0 | AH90: 0 | AI90: 0 | AJ90: 0 | AK90: 0 | AL90: 0 | AM90: 0 | AN90: 0 | AP90: 0 | AQ90: 0 | AR90: 0 | AS90: 0 | AT90: 0 | AU90: 0 | AV90: 0 | AW90: 0 | AX90: 0 | AY90: 0 | AZ90: 0 | BA90: 0
A91: 0 | B91: 0 | G91: 0 | N91: 0 | O91: 0 | P91: 0 | Q91: 0 | R91: 0 | S91: 0 | T91: 0 | U91: 0 | V91: 0 | W91: 0 | X91: 0 | Y91: 0 | Z91: 0 | AA91: 0 | AB91: 0 | AC91: 0 | AD91: 0 | AG91: 0 | AH91: 0 | AI91: 0 | AJ91: 0 | AK91: 0 | AL91: 0 | AM91: 0 | AN91: 0 | AP91: 0 | AQ91: 0 | AR91: 0 | AS91: 0 | AT91: 0 | AU91: 0 | AV91: 0 | AW91: 0 | AX91: 0 | AY91: 0 | AZ91: 0 | BA91: 0
A92: 0 | B92: 0 | G92: 0 | N92: 0 | O92: 0 | P92: 0 | Q92: 0 | R92: 0 | S92: 0 | T92: 0 | U92: 0 | V92: 0 | W92: 0 | X92: 0 | Y92: 0 | Z92: 0 | AA92: 0 | AB92: 0 | AC92: 0 | AD92: 0 | AG92: 0 | AH92: 0 | AI92: 0 | AJ92: 0 | AK92: 0 | AL92: 0 | AM92: 0 | AN92: 0 | AP92: 0 | AQ92: 0 | AR92: 0 | AS92: 0 | AT92: 0 | AU92: 0 | AV92: 0 | AW92: 0 | AX92: 0 | AY92: 0 | AZ92: 0 | BA92: 0
A93: 0 | B93: 0 | G93: 0 | N93: 0 | O93: 0 | P93: 0 | Q93: 0 | R93: 0 | S93: 0 | T93: 0 | U93: 0 | V93: 0 | W93: 0 | X93: 0 | Y93: 0 | Z93: 0 | AA93: 0 | AB93: 0 | AC93: 0 | AD93: 0 | AG93: 0 | AH93: 0 | AI93: 0 | AJ93: 0 | AK93: 0 | AL93: 0 | AM93: 0 | AN93: 0 | AP93: 0 | AQ93: 0 | AR93: 0 | AS93: 0 | AT93: 0 | AU93: 0 | AV93: 0 | AW93: 0 | AX93: 0 | AY93: 0 | AZ93: 0 | BA93: 0
A94: 0 | B94: 0 | G94: 0 | N94: 0 | O94: 0 | P94: 0 | Q94: 0 | R94: 0 | S94: 0 | T94: 0 | U94: 0 | V94: 0 | W94: 0 | X94: 0 | Y94: 0 | Z94: 0 | AA94: 0 | AB94: 0 | AC94: 0 | AD94: 0 | AG94: 0 | AH94: 0 | AI94: 0 | AJ94: 0 | AK94: 0 | AL94: 0 | AM94: 0 | AN94: 0 | AP94: 0 | AQ94: 0 | AR94: 0 | AS94: 0 | AT94: 0 | AU94: 0 | AV94: 0 | AW94: 0 | AX94: 0 | AY94: 0 | AZ94: 0 | BA94: 0
A95: 0 | B95: 0 | G95: 0 | N95: 0 | O95: 0 | P95: 0 | Q95: 0 | R95: 0 | S95: 0 | T95: 0 | U95: 0 | V95: 0 | W95: 0 | X95: 0 | Y95: 0 | Z95: 0 | AA95: 0 | AB95: 0 | AC95: 0 | AD95: 0 | AG95: 0 | AH95: 0 | AI95: 0 | AJ95: 0 | AK95: 0 | AL95: 0 | AM95: 0 | AN95: 0 | AP95: 0 | AQ95: 0 | AR95: 0 | AS95: 0 | AT95: 0 | AU95: 0 | AV95: 0 | AW95: 0 | AX95: 0 | AY95: 0 | AZ95: 0 | BA95: 0
A96: =MIN(T96,AC96) -> 0 | B96: 0 | G96: =IF(F96>0,50000,0) -> 0 | N96: =F96-G96-H96-I96-J96-K96-L96-M96 -> 0 | O96: =IF(N96<250000,0,IF(N96>500000,12500,IF(N96<500000,ROUND((N96-250000)*0.05,0),0))) -> 0 | P96: =IF(N96<500000,0,IF(N96>1000000,100000,ROUND((N96-500000)*0.2,0))) -> 0 | Q96: =IF(N96<1000000,0,ROUND((N96-1000000)*0.3,0)) -> 0 | R96: =IF(F96>0,(O96+P96+Q96),0) -> 0 | S96: =ROUND(R96*0.04,0) -> 0 | T96: =R96+S96 -> 0 | U96: =IF(F96>500000,12500,0) -> 0 | V96: =IF(F96<500000,0,IF(F96>750000,25000,ROUND((F96-500000)*0.1,0))) -> 0 | W96: =IF(F96<750000,0,IF(F96>1000000,37500,ROUND((F96-750000)*0.15,0))) -> 0 | X96: =IF(F96<1000000,0,IF(F96>1250000,50000,ROUND((F96-1000000)*0.2,0))) -> 0 | Y96: =IF(F96<1250000,0,IF(F96>1500000,62500,ROUND((F96-1250000)*0.25,0))) -> 0 | Z96: =IF(F96<1500000,0,ROUND((F96-1500000)*0.3,0)) -> 0 | AA96: =U96+V96+W96+X96+Y96+Z96 -> 0 | AB96: =ROUND(AA96*0.04,0) -> 0 | AC96: =AA96+AB96 -> 0 | AD96: 0 | AG96: =AE96+AF96 -> 0 | AH96: =MIN(AP96,AV96) -> 0 | AI96: =MIN(AQ96,AW96) -> 0 | AJ96: =MIN(AR96,AX96) -> 0 | AK96: =AH96+AI96+AJ96 -> 0 | AL96: =MIN(T96,AC96) -> 0 | AM96: 0 | AN96: 0 | AP96: =IF($AE$4="जन.-2023 के वेतन तक की गई Itax कटौती",0,IF(T96<=12500,0,IF(AG96>T96,0,ROUNDUP((T96-AG96)/3,-3)))) -> 0 | AQ96: =IF($AE$4="जन.-2023 के वेतन तक की गई Itax कटौती",0,IF(T96<=12500,0,IF(AG96>T96,0,ROUNDUP((T96-AG96)/3,-3)))) -> 0 | AR96: =IF($AE$4="जन.-2023 के वेतन तक की गई Itax कटौती",ROUNDUP((T96-AG96),-3),IF(T96<=12500,0,IF(AG96>T96,0,ROUNDUP((T96-AG96)/3,-3)))) -> 0 | AS96: =AP96+AQ96+AR96 -> 0 | AT96: =AS96+AE96 -> 0 | AU96: =AT96-T96 -> 0 | AV96: =IF($AE$4="जन.-2023 के वेतन तक की गई Itax कटौती",0,IF(AC96<=12500,0,IF(AG96>AC96,0,ROUNDUP((AC96-AG96)/3,-3)))) -> 0 | AW96: =IF($AE$4="जन.-2023 के वेतन तक की गई Itax कटौती",0,IF(AC96<=12500,0,IF(AG96>AC96,0,ROUNDUP((AC96-AG96)/3,-3)))) -> 0 | AX96: =IF($AE$4="जन.-2023 के वेतन तक की गई Itax कटौती",ROUNDUP((AC96-AG96),-3),IF(AC96<=12500,0,IF(AG96>AC96,0,ROUNDUP((AC96-AG96)/3,-3)))) -> 0 | AY96: =AV96+AW96+AX96 -> 0 | AZ96: =AY96+AE96 -> 0 | BA96: =AZ96-AC96 -> 0
A97: 0 | B97: 0 | G97: 0 | N97: 0 | O97: 0 | P97: 0 | Q97: 0 | R97: 0 | S97: 0 | T97: 0 | U97: 0 | V97: 0 | W97: 0 | X97: 0 | Y97: 0 | Z97: 0 | AA97: 0 | AB97: 0 | AC97: 0 | AD97: 0 | AG97: 0 | AH97: 0 | AI97: 0 | AJ97: 0 | AK97: 0 | AL97: 0 | AM97: 0 | AN97: 0 | AP97: 0 | AQ97: 0 | AR97: 0 | AS97: 0 | AT97: 0 | AU97: 0 | AV97: 0 | AW97: 0 | AX97: 0 | AY97: 0 | AZ97: 0 | BA97: 0
A98: 0 | B98: 0 | G98: 0 | N98: 0 | O98: 0 | P98: 0 | Q98: 0 | R98: 0 | S98: 0 | T98: 0 | U98: 0 | V98: 0 | W98: 0 | X98: 0 | Y98: 0 | Z98: 0 | AA98: 0 | AB98: 0 | AC98: 0 | AD98: 0 | AG98: 0 | AH98: 0 | AI98: 0 | AJ98: 0 | AK98: 0 | AL98: 0 | AM98: 0 | AN98: 0 | AP98: 0 | AQ98: 0 | AR98: 0 | AS98: 0 | AT98: 0 | AU98: 0 | AV98: 0 | AW98: 0 | AX98: 0 | AY98: 0 | AZ98: 0 | BA98: 0
A99: 0 | B99: 0 | G99: 0 | N99: 0 | O99: 0 | P99: 0 | Q99: 0 | R99: 0 | S99: 0 | T99: 0 | U99: 0 | V99: 0 | W99: 0 | X99: 0 | Y99: 0 | Z99: 0 | AA99: 0 | AB99: 0 | AC99: 0 | AD99: 0 | AG99: 0 | AH99: 0 | AI99: 0 | AJ99: 0 | AK99: 0 | AL99: 0 | AM99: 0 | AN99: 0 | AP99: 0 | AQ99: 0 | AR99: 0 | AS99: 0 | AT99: 0 | AU99: 0 | AV99: 0 | AW99: 0 | AX99: 0 | AY99: 0 | AZ99: 0 | BA99: 0
A100: 0 | B100: 0 | G100: 0 | N100: 0 | O100: 0 | P100: 0 | Q100: 0 | R100: 0 | S100: 0 | T100: 0 | U100: 0 | V100: 0 | W100: 0 | X100: 0 | Y100: 0 | Z100: 0 | AA100: 0 | AB100: 0 | AC100: 0 | AD100: 0 | AG100: 0 | AH100: 0 | AI100: 0 | AJ100: 0 | AK100: 0 | AL100: 0 | AM100: 0 | AN100: 0 | AP100: 0 | AQ100: 0 | AR100: 0 | AS100: 0 | AT100: 0 | AU100: 0 | AV100: 0 | AW100: 0 | AX100: 0 | AY100: 0 | AZ100: 0 | BA100: 0
A101: 0 | B101: 0 | G101: 0 | N101: 0 | O101: 0 | P101: 0 | Q101: 0 | R101: 0 | S101: 0 | T101: 0 | U101: 0 | V101: 0 | W101: 0 | X101: 0 | Y101: 0 | Z101: 0 | AA101: 0 | AB101: 0 | AC101: 0 | AD101: 0 | AG101: 0 | AH101: 0 | AI101: 0 | AJ101: 0 | AK101: 0 | AL101: 0 | AM101: 0 | AN101: 0 | AP101: 0 | AQ101: 0 | AR101: 0 | AS101: 0 | AT101: 0 | AU101: 0 | AV101: 0 | AW101: 0 | AX101: 0 | AY101: 0 | AZ101: 0 | BA101: 0
A102: 0 | B102: 0 | G102: 0 | N102: 0 | O102: 0 | P102: 0 | Q102: 0 | R102: 0 | S102: 0 | T102: 0 | U102: 0 | V102: 0 | W102: 0 | X102: 0 | Y102: 0 | Z102: 0 | AA102: 0 | AB102: 0 | AC102: 0 | AD102: 0 | AG102: 0 | AH102: 0 | AI102: 0 | AJ102: 0 | AK102: 0 | AL102: 0 | AM102: 0 | AN102: 0 | AP102: 0 | AQ102: 0 | AR102: 0 | AS102: 0 | AT102: 0 | AU102: 0 | AV102: 0 | AW102: 0 | AX102: 0 | AY102: 0 | AZ102: 0 | BA102: 0
A103: 0 | B103: 0 | G103: 0 | N103: 0 | O103: 0 | P103: 0 | Q103: 0 | R103: 0 | S103: 0 | T103: 0 | U103: 0 | V103: 0 | W103: 0 | X103: 0 | Y103: 0 | Z103: 0 | AA103: 0 | AB103: 0 | AC103: 0 | AD103: 0 | AG103: 0 | AH103: 0 | AI103: 0 | AJ103: 0 | AK103: 0 | AL103: 0 | AM103: 0 | AN103: 0 | AP103: 0 | AQ103: 0 | AR103: 0 | AS103: 0 | AT103: 0 | AU103: 0 | AV103: 0 | AW103: 0 | AX103: 0 | AY103: 0 | AZ103: 0 | BA103: 0
A104: 0 | B104: 0 | G104: 0 | N104: 0 | O104: 0 | P104: 0 | Q104: 0 | R104: 0 | S104: 0 | T104: 0 | U104: 0 | V104: 0 | W104: 0 | X104: 0 | Y104: 0 | Z104: 0 | AA104: 0 | AB104: 0 | AC104: 0 | AD104: 0 | AG104: 0 | AH104: 0 | AI104: 0 | AJ104: 0 | AK104: 0 | AL104: 0 | AM104: 0 | AN104: 0 | AP104: 0 | AQ104: 0 | AR104: 0 | AS104: 0 | AT104: 0 | AU104: 0 | AV104: 0 | AW104: 0 | AX104: 0 | AY104: 0 | AZ104: 0 | BA104: 0
A105: 0 | B105: 0 | G105: 0 | N105: 0 | O105: 0 | P105: 0 | Q105: 0 | R105: 0 | S105: 0 | T105: 0 | U105: 0 | V105: 0 | W105: 0 | X105: 0 | Y105: 0 | Z105: 0 | AA105: 0 | AB105: 0 | AC105: 0 | AD105: 0 | AG105: 0 | AH105: 0 | AI105: 0 | AJ105: 0 | AK105: 0 | AL105: 0 | AM105: 0 | AN105: 0 | AP105: 0 | AQ105: 0 | AR105: 0 | AS105: 0 | AT105: 0 | AU105: 0 | AV105: 0 | AW105: 0 | AX105: 0 | AY105: 0 | AZ105: 0 | BA105: 0
A106: 0 | B106: =IF(A106=0,0,IF(A106<=12500,"R",0)) -> 0 | G106: 0 | N106: 0 | O106: 0 | P106: 0 | Q106: 0 | R106: 0 | S106: 0 | T106: 0 | U106: 0 | V106: 0 | W106: 0 | X106: 0 | Y106: 0 | Z106: 0 | AA106: 0 | AB106: 0 | AC106: 0 | AD106: 0 | AG106: 0 | AH106: 0 | AI106: 0 | AJ106: 0 | AK106: 0 | AL106: 0 | AM106: 0 | AN106: 0 | AP106: 0 | AQ106: 0 | AR106: 0 | AS106: 0 | AT106: 0 | AU106: 0 | AV106: 0 | AW106: 0 | AX106: 0 | AY106: 0 | AZ106: 0 | BA106: 0

Sheet HRA Calculator
C1: Prepared By :- | D1: Ummed Tarad (Teacher-GSSS Raimalwada, Mob.No.-9166973141)
C2: Employee Related Details | G2: HRA Calculation
C3: Name of Office:- | D3: Govt. Sr. Sec. School Raimalwada, Bapini-Jodhpur | G3: Sr. No. | H3: Perticulars | I3: Amount (in Rs.) | J3: Examption Amount (in Rs.)
C4: Type of official Location :- | D4: Rural Area | G4: 1 | H4: Actual HRA received | I4: =N12 -> ₹ 49,716 | J4: =I4 -> ₹ 49,716 | M4: Basic | N4: =D8 -> ₹ 45,100 | O4: =ROUND(N4*103%,-2) -> ₹ 46,500 | Q4: =MIN(J4:J9) -> -₹ 75,510
C5: Name of Employee :- | D5: Ummed | G5: 2 | H5: (i) Rent Paid (Per month rent*12 months) | I5: =D9*12 -> ₹ 0 | J5: =I5-I7 -> -₹ 75,510 | M5: DA | N5: =ROUND(N4*0.34,0) -> 15334 | O5: =ROUND(O4*0.38,0) -> 17670
C6: Designation of Employee :- | D6: Teacher
C7: Employee's PAN :- | D7: ABCDE1234F | H7: (ii) 10% of (Basic Pay*12 months)+(D.A.*12 months) | I7: =ROUND(N9*10%,0) -> ₹ 75,510 | M7: Total | N7: =N4+N5 -> ₹ 60,434 | O7: =O4+O5 -> ₹ 64,170
C8: Basic Pay (March-2022) :- | D8: ₹ 45,100 | G8: 3 | H8: 50 % of (Basic Pay*12 months)+(D.A.*12 months) For Metro cities (Chennai, Dehli, Mumbai, Kolkata) Or 40 % of (Basic Pay*12 months)+(D.A.*12 months) For Non Metro cities | I8: =IF(D4="Metro City",ROUND(I7*5,0),IF(D4="Non Metro City",ROUND(I7*4,0),I7)) -> ₹ 75,510 | J8: =I8 -> ₹ 75,510 | N8: =N7*4 -> ₹ 241,736 | O8: =O7*8 -> ₹ 513,360
C9: Rent Pay (Per Month) :- | D9: ₹ 0 | M9: 12 Month's Total | N9: =N8+O8 -> ₹ 755,096
C10: House Owner's Name :- | D10: XYZ | G10: Saction 10(13A) {i.e. Exempt HRA u/s 10(13A)} | I10: =IF(Q4<0,"Please enter the proper amount of per month's rent",Q4) -> Please enter the proper amount of per month's rent | M10: HRA | N10: =IF($D$4="Rural Area",ROUND(N4*0.09,0),ROUND(N4*0.18,0)) -> 4059 | O10: =IF($D$4="Rural Area",ROUND(O4*0.09,0),ROUND(O4*0.18,0)) -> 4185
C11: House Owner's PAN :- | D11: ZYXWV9876U | G11: (Lowest of the three) | N11: =N10*4 -> 16236 | O11: =O10*8 -> 33480
M12: 12 Month's Total | N12: =N11+O11 -> ₹ 49,716
A13: =I10 -> Please enter the proper amount of per month's rent | C13: Quarterly Receipt Amount :- | E13: =D9*3 -> ₹ 0 | G13: Yearly Receipt Amount :- | I13: =I5 -> ₹ 0

Sheet HRA Receipt
B2: 1 | C2: RECEIPT OF HOUSE RENT | N2: 2 | O2: RECEIPT OF HOUSE RENT
B3: (Under section 1 (13-A) of Income Tax Act) | N3: (Under section 1 (13-A) of Income Tax Act)
I5: Date :- | U5: Date :-
C6: I Owner | D6: ='HRA Calculator'!$D$10 -> XYZ | O6: I Owner | P6: ='HRA Calculator'!$D$10 -> XYZ
D7: Received with Thanks from Sri/Smt. | H7: ='HRA Calculator'!$D$5 -> Ummed | K7: =CONCATENATE("(",'HRA Calculator'!$D$6,")") -> (Teacher) | P7: Received with Thanks from Sri/Smt. | T7: ='HRA Calculator'!$D$5 -> Ummed | W7: =CONCATENATE("(",'HRA Calculator'!$D$6,")") -> (Teacher)
C8: Address- | D8: ='HRA Calculator'!$D$3 -> Govt. Sr. Sec. School Raimalwada, Bapini-Jodhpur | O8: Address- | P8: ='HRA Calculator'!$D$3 -> Govt. Sr. Sec. School Raimalwada, Bapini-Jodhpur
C9: The sum of (Quarterly) | G9: ='HRA Calculator'!$E$13 -> 0 | O9: The sum of (Quarterly) | S9: ='HRA Calculator'!$E$13 -> 0
C10: Towards the House Rent (Monthly) @ | G10: ='HRA Calculator'!$D$9 -> 0 | O10: Towards the House Rent (Monthly) @ | S10: ='HRA Calculator'!$D$9 -> 0
C11: Per Month From :- | E11: 1 April, 2022 To 30 June, 2022 | O11: Per Month From :- | Q11: 1 July, 2022 To 30 Sep., 2022
C13: Rs. = | D13: =G9 -> 0 | O13: Rs. = | P13: =G9 -> 0
C15: Date:- | D15: =K5 -> 00:00:00 | O15: Date:- | P15: =K5 -> 00:00:00
G17: (Signature of House Owner) | S17: (Signature of House Owner)
G18: (Affix Revenue Stamp of Rs.1/-) | S18: (Affix Revenue Stamp of Rs.1/-)
G19: Name- | I19: =D6 -> XYZ | S19: Name- | U19: =D6 -> XYZ
G20: ADDRESS | S20: ADDRESS
G21: ='[1]Exemp.(HRA+Other) & Other incom'!$P$4 -> 0 | S21: ='[1]Exemp.(HRA+Other) & Other incom'!$P$4 -> 0
G23: PAN NUMBER | J23: ='HRA Calculator'!$D$11 -> ZYXWV9876U | S23: PAN NUMBER | V23: ='[1]Exemp.(HRA+Other) & Other incom'!$Q$4 -> 0
B26: 3 | C26: RECEIPT OF HOUSE RENT | N26: 4 | O26: RECEIPT OF HOUSE RENT
B27: (Under section 1 (13-A) of Income Tax Act) | N27: (Under section 1 (13-A) of Income Tax Act)
I29: Date :- | U29: Date :-
C30: I Owner | D30: ='HRA Calculator'!$D$10 -> XYZ | O30: I Owner | P30: ='HRA Calculator'!$D$10 -> XYZ
D31: Received with Thanks from Sri/Smt. | H31: ='HRA Calculator'!$D$5 -> Ummed | K31: =CONCATENATE("(",'HRA Calculator'!$D$6,")") -> (Teacher) | P31: Received with Thanks from Sri/Smt. | T31: ='HRA Calculator'!$D$5 -> Ummed | W31: =CONCATENATE("(",'HRA Calculator'!$D$6,")") -> (Teacher)
C32: Address- | D32: ='HRA Calculator'!$D$3 -> Govt. Sr. Sec. School Raimalwada, Bapini-Jodhpur | O32: Address- | P32: ='HRA Calculator'!$D$3 -> Govt. Sr. Sec. School Raimalwada, Bapini-Jodhpur
C33: The sum of (Quarterly) | G33: ='HRA Calculator'!$E$13 -> 0 | O33: The sum of (Quarterly) | S33: ='HRA Calculator'!$E$13 -> 0
C34: Towards the House Rent (Monthly) @ | G34: ='HRA Calculator'!$D$9 -> 0 | O34: Towards the House Rent (Monthly) @ | S34: ='HRA Calculator'!$D$9 -> 0
C35: Per Month From :- | E35: 1 Oct., 2022 To 31 Dec., 2022 | O35: Per Month From :- | Q35: 1 Jan., 2023 To 31 March, 2023
C37: Rs. = | D37: =G33 -> 0 | O37: Rs. = | P37: =S33 -> 0
C39: Date:- | D39: =K29 -> 00:00:00 | O39: Date:- | P39: =W29 -> 00:00:00
G41: (Signature of House Owner) | S41: (Signature of House Owner)
G42: (Affix Revenue Stamp of Rs.1/-) | S42: (Affix Revenue Stamp of Rs.1/-)
G43: Name- | I43: =D30 -> XYZ | S43: Name- | U43: =P30 -> XYZ
G44: ADDRESS | S44: ADDRESS
G45: ='[1]Exemp.(HRA+Other) & Other incom'!$P$4 -> 0 | S45: ='[1]Exemp.(HRA+Other) & Other incom'!$P$4 -> 0
G47: PAN NUMBER | J47: ='[1]Exemp.(HRA+Other) & Other incom'!$Q$4 -> 0 | S47: PAN NUMBER | V47: ='[1]Exemp.(HRA+Other) & Other incom'!$Q$4 -> 0
B50: 1 | C50: RECEIPT OF HOUSE RENT | N50: 2 | O50: RECEIPT OF HOUSE RENT
B51: (Under section 1 (13-A) of Income Tax Act) | N51: (Under section 1 (13-A) of Income Tax Act)
I53: Date :- | U53: Date :-
C54: I Owner | D54: ='HRA Calculator'!$D$10 -> XYZ | O54: I Owner | P54: ='HRA Calculator'!$D$10 -> XYZ
D55: Received with Thanks from Sri/Smt. | H55: ='HRA Calculator'!$D$5 -> Ummed | K55: =CONCATENATE("(",'HRA Calculator'!$D$6,")") -> (Teacher) | P55: Received with Thanks from Sri/Smt. | T55: ='HRA Calculator'!$D$5 -> Ummed | W55: =CONCATENATE("(",'HRA Calculator'!$D$6,")") -> (Teacher)
C56: Address- | D56: ='HRA Calculator'!$D$3 -> Govt. Sr. Sec. School Raimalwada, Bapini-Jodhpur | O56: Address- | P56: ='HRA Calculator'!$D$3 -> Govt. Sr. Sec. School Raimalwada, Bapini-Jodhpur
C57: The sum of (Yearly) | G57: ='HRA Calculator'!$I$13 -> 0 | O57: The sum of (Yearly) | S57: ='HRA Calculator'!$I$13 -> 0
C58: Towards the House Rent (Monthly) @ | G58: ='HRA Calculator'!$D$9 -> 0 | O58: Towards the House Rent (Monthly) @ | S58: ='HRA Calculator'!$D$9 -> 0
C59: Per Month From :- | E59: 1 April, 2022 To 31 March, 2023 | O59: Per Month From :- | Q59: =E59 -> 1 April, 2022 To 31 March, 2023
C61: Rs. = | D61: =G57 -> 0 | O61: Rs. = | P61: =G57 -> 0
C63: Date:- | D63: =K53 -> 00:00:00 | O63: Date:- | P63: =K53 -> 00:00:00
G65: (Signature of House Owner) | S65: (Signature of House Owner)
G66: (Affix Revenue Stamp of Rs.1/-) | S66: (Affix Revenue Stamp of Rs.1/-)
G67: Name- | I67: =D54 -> XYZ | S67: Name- | U67: =D54 -> XYZ
G68: ADDRESS | S68: ADDRESS
G69: ='[1]Exemp.(HRA+Other) & Other incom'!$P$4 -> 0 | S69: ='[1]Exemp.(HRA+Other) & Other incom'!$P$4 -> 0
G71: PAN NUMBER | J71: ='[1]Exemp.(HRA+Other) & Other incom'!$Q$4 -> 0 | S71: PAN NUMBER | V71: ='[1]Exemp.(HRA+Other) & Other incom'!$Q$4 -> 0
